Workbook

Sheet Mais-valia
B2: Dados
B3: Quantidade de proprietários (por cada direito) | C3: 4
B4: Tipo de Proprietários | C4: Proprietário de Raiz e Direito de Superfície
B5: Imóvel
B6: Localidade | C6: Porto
B7: Finalidade do imóvel | C7: Habitação secundária
B8: Valor de venda do imóvel | C8: 180000
B9: Ano de venda | C9: 2025
A12: Cálculo da mais valia
B13: Proprietário 1 | D13: Proprietário 2 | F13: Proprietário 3 | H13: Proprietário 4 | J13: Proprietário 5 | L13: Proprietário 6 | N13: Proprietário 7 | P13: Proprietário 8 | R13: Proprietário 9 | T13: Proprietário 10 | V13: Proprietário 11 | X13: Proprietário 12 | Z13: Proprietário 13 | AB13: Proprietário 14 | AD13: Proprietário 15
B14: Nome | C14: João | D14: Nome | E14: Maria | H14: Nome | J14: Nome | L14: Nome | N14: Nome | P14: Nome | R14: Nome | T14: Nome | V14: Nome | X14: Nome | Z14: Nome | AB14: Nome | AD14: Nome
B15: Idade | C15: 60 | D15: Idade | E15: 55 | F15: Idade | H15: Idade | J15: Idade | L15: Idade | N15: Idade | P15: Idade | R15: Idade | T15: Idade | V15: Idade | X15: Idade | Z15: Idade | AB15: Idade | AD15: Idade
A16: =SUM(INDEX(16:16, _xlfn.SEQUENCE(C3, , 3, 2))) -> 1 | B16: Quota-parte do direito | C16: 0.5 | D16: Quota-parte do direito | E16: 0.5 | F16: Quota-parte do direito | H16: Quota-parte do direito | J16: Quota-parte do direito | L16: Quota-parte do direito | N16: Quota-parte do direito | P16: Quota-parte do direito | R16: Quota-parte do direito | T16: Quota-parte do direito | V16: Quota-parte do direito | X16: Quota-parte do direito | Z16: Quota-parte do direito | AB16: Quota-parte do direito | AD16: Quota-parte do direito
A17: =IF(A16<>100%, "As percentagens dos proprietários não totalizam 100%, voltar a confirmar quotas de todos os proprietários", "") ->  | B17: Origem | C17: Herança direta | D17: Origem | E17: Herança direta | F17: Origem | H17: Origem | J17: Origem | L17: Origem | N17: Origem | P17: Origem | R17: Origem | T17: Origem | V17: Origem | X17: Origem | Z17: Origem | AB17: Origem | AD17: Origem
B18: =IF(C17="Herança direta", "Valor patrimonial", IF(C17="Herança de terceiro", "Valor do imóvel na doação", IF(C17="Aquisição", "Valor de aquisição", ""))) -> Valor patrimonial | C18: 75000 | D18: =IF(E17="Herança direta", "Valor patrimonial", IF(E17="Herança de terceiro", "Valor do imóvel na doação", IF(E17="Aquisição", "Valor de aquisição", ""))) -> Valor patrimonial | E18: 75000 | F18: =IF(G17="Herança direta", "Valor patrimonial", IF(G17="Herança de terceiro", "Valor do imóvel na doação", IF(G17="Aquisição", "Valor de aquisição", ""))) ->  | H18: =IF(I17="Herança direta", "Valor patrimonial", IF(I17="Herança de terceiro", "Valor do imóvel na doação", IF(I17="Aquisição", "Valor de aquisição", ""))) ->  | J18: =IF(K17="Herança direta", "Valor patrimonial", IF(K17="Herança de terceiro", "Valor do imóvel na doação", IF(K17="Aquisição", "Valor de aquisição", ""))) ->  | L18: =IF(M17="Herança direta", "Valor patrimonial", IF(M17="Herança de terceiro", "Valor do imóvel na doação", IF(M17="Aquisição", "Valor de aquisição", ""))) ->  | N18: =IF(O17="Herança direta", "Valor patrimonial", IF(O17="Herança de terceiro", "Valor do imóvel na doação", IF(O17="Aquisição", "Valor de aquisição", ""))) ->  | P18: =IF(Q17="Herança direta", "Valor patrimonial", IF(Q17="Herança de terceiro", "Valor do imóvel na doação", IF(Q17="Aquisição", "Valor de aquisição", ""))) ->  | R18: =IF(S17="Herança direta", "Valor patrimonial", IF(S17="Herança de terceiro", "Valor do imóvel na doação", IF(S17="Aquisição", "Valor de aquisição", ""))) ->  | T18: =IF(U17="Herança direta", "Valor patrimonial", IF(U17="Herança de terceiro", "Valor do imóvel na doação", IF(U17="Aquisição", "Valor de aquisição", ""))) ->  | V18: =IF(W17="Herança direta", "Valor patrimonial", IF(W17="Herança de terceiro", "Valor do imóvel na doação", IF(W17="Aquisição", "Valor de aquisição", ""))) ->  | X18: =IF(Y17="Herança direta", "Valor patrimonial", IF(Y17="Herança de terceiro", "Valor do imóvel na doação", IF(Y17="Aquisição", "Valor de aquisição", ""))) ->  | Z18: =IF(AA17="Herança direta", "Valor patrimonial", IF(AA17="Herança de terceiro", "Valor do imóvel na doação", IF(AA17="Aquisição", "Valor de aquisição", ""))) ->  | AB18: =IF(AC17="Herança direta", "Valor patrimonial", IF(AC17="Herança de terceiro", "Valor do imóvel na doação", IF(AC17="Aquisição", "Valor de aquisição", ""))) ->  | AD18: =IF(AE17="Herança direta", "Valor patrimonial", IF(AE17="Herança de terceiro", "Valor do imóvel na doação", IF(AE17="Aquisição", "Valor de aquisição", ""))) -> 
B19: Ano de aquisição | C19: 2013 | D19: Ano de aquisição | E19: 2013 | F19: Ano de aquisição | H19: Ano de aquisição | J19: Ano de aquisição | L19: Ano de aquisição | N19: Ano de aquisição | P19: Ano de aquisição | R19: Ano de aquisição | T19: Ano de aquisição | V19: Ano de aquisição | X19: Ano de aquisição | Z19: Ano de aquisição | AB19: Ano de aquisição | AD19: Ano de aquisição
B20: Obras nos últimos 12 anos | C20: 15000 | D20: Obras nos últimos 12 anos | E20: 0 | F20: Obras nos últimos 12 anos | H20: Obras nos últimos 12 anos | J20: Obras nos últimos 12 anos | L20: Obras nos últimos 12 anos | N20: Obras nos últimos 12 anos | P20: Obras nos últimos 12 anos | R20: Obras nos últimos 12 anos | T20: Obras nos últimos 12 anos | V20: Obras nos últimos 12 anos | X20: Obras nos últimos 12 anos | Z20: Obras nos últimos 12 anos | AB20: Obras nos últimos 12 anos | AD20: Obras nos últimos 12 anos
B21: Impostos pagos na aquisição | C21: 3000 | D21: Impostos pagos na aquisição | E21: 3000 | F21: Impostos pagos na aquisição | H21: Impostos pagos na aquisição | J21: Impostos pagos na aquisição | L21: Impostos pagos na aquisição | N21: Impostos pagos na aquisição | P21: Impostos pagos na aquisição | R21: Impostos pagos na aquisição | T21: Impostos pagos na aquisição | V21: Impostos pagos na aquisição | X21: Impostos pagos na aquisição | Z21: Impostos pagos na aquisição | AB21: Impostos pagos na aquisição | AD21: Impostos pagos na aquisição
B22: Comissão imobiliária | C22: 5000 | D22: Comissão imobiliária | E22: 5000 | F22: Comissão imobiliária | H22: Comissão imobiliária | J22: Comissão imobiliária | L22: Comissão imobiliária | N22: Comissão imobiliária | P22: Comissão imobiliária | R22: Comissão imobiliária | T22: Comissão imobiliária | V22: Comissão imobiliária | X22: Comissão imobiliária | Z22: Comissão imobiliária | AB22: Comissão imobiliária | AD22: Comissão imobiliária
B23: Outros encargos dedutíveis | C23: 0 | D23: Outros encargos dedutíveis | E23: 0 | F23: Outros encargos dedutíveis | H23: Outros encargos dedutíveis | J23: Outros encargos dedutíveis | L23: Outros encargos dedutíveis | N23: Outros encargos dedutíveis | P23: Outros encargos dedutíveis | R23: Outros encargos dedutíveis | T23: Outros encargos dedutíveis | V23: Outros encargos dedutíveis | X23: Outros encargos dedutíveis | Z23: Outros encargos dedutíveis | AB23: Outros encargos dedutíveis | AD23: Outros encargos dedutíveis
B24: Cálculo da mais valia | D24: Cálculo da mais valia | F24: Cálculo da mais valia | H24: Cálculo da mais valia | J24: Cálculo da mais valia | L24: Cálculo da mais valia | N24: Cálculo da mais valia | P24: Cálculo da mais valia | R24: Cálculo da mais valia | T24: Cálculo da mais valia | V24: Cálculo da mais valia | X24: Cálculo da mais valia | Z24: Cálculo da mais valia | AB24: Cálculo da mais valia | AD24: Cálculo da mais valia
B25: Coeficiente de atualização | C25: =VLOOKUP(C19, 'Coeficiente de atualização'!B2:C154, 2, FALSE) -> 1.17 | D25: Coeficiente de atualização | E25: =VLOOKUP(E19, 'Coeficiente de atualização'!$B$2:$C$154, 2, FALSE) -> 1.17 | F25: Coeficiente de atualização | G25: =VLOOKUP(G19, 'Coeficiente de atualização'!$B$2:$C$154, 2, FALSE) ->  | H25: Coeficiente de atualização | I25: =VLOOKUP(I19, 'Coeficiente de atualização'!$B$2:$C$154, 2, FALSE) ->  | J25: Coeficiente de atualização | K25: =VLOOKUP(K19, 'Coeficiente de atualização'!$B$2:$C$154, 2, FALSE) ->  | L25: Coeficiente de atualização | M25: =VLOOKUP(M19, 'Coeficiente de atualização'!$B$2:$C$154, 2, FALSE) ->  | N25: Coeficiente de atualização | O25: =VLOOKUP(O19, 'Coeficiente de atualização'!$B$2:$C$154, 2, FALSE) ->  | P25: Coeficiente de atualização | Q25: =VLOOKUP(Q19, 'Coeficiente de atualização'!$B$2:$C$154, 2, FALSE) ->  | R25: Coeficiente de atualização | S25: =VLOOKUP(S19, 'Coeficiente de atualização'!$B$2:$C$154, 2, FALSE) ->  | T25: Coeficiente de atualização | U25: =VLOOKUP(U19, 'Coeficiente de atualização'!$B$2:$C$154, 2, FALSE) ->  | V25: Coeficiente de atualização | W25: =VLOOKUP(W19, 'Coeficiente de atualização'!$B$2:$C$154, 2, FALSE) ->  | X25: Coeficiente de atualização | Y25: =VLOOKUP(Y19, 'Coeficiente de atualização'!$B$2:$C$154, 2, FALSE) ->  | Z25: Coeficiente de atualização | AA25: =VLOOKUP(AA19, 'Coeficiente de atualização'!$B$2:$C$154, 2, FALSE) ->  | AB25: Coeficiente de atualização | AC25: =VLOOKUP(AC19, 'Coeficiente de atualização'!$B$2:$C$154, 2, FALSE) ->  | AD25: Coeficiente de atualização | AE25: =VLOOKUP(AE19, 'Coeficiente de atualização'!$B$2:$C$154, 2, FALSE) -> 
B26: Despesas e encargos | C26: =C20+C21+C22+C23 -> 23000 | D26: Despesas e encargos | E26: =E20+E21+E22+E23 -> 8000 | F26: Despesas e encargos | G26: =G20+G21+G22+G23 -> 0 | H26: Despesas e encargos | I26: =I20+I21+I22+I23 -> 0 | J26: Despesas e encargos | K26: =K20+K21+K22+K23 -> 0 | L26: Despesas e encargos | M26: =M20+M21+M22+M23 -> 0 | N26: Despesas e encargos | O26: =O20+O21+O22+O23 -> 0 | P26: Despesas e encargos | Q26: =Q20+Q21+Q22+Q23 -> 0 | R26: Despesas e encargos | S26: =S20+S21+S22+S23 -> 0 | T26: Despesas e encargos | U26: =U20+U21+U22+U23 -> 0 | V26: Despesas e encargos | W26: =W20+W21+W22+W23 -> 0 | X26: Despesas e encargos | Y26: =Y20+Y21+Y22+Y23 -> 0 | Z26: Despesas e encargos | AA26: =AA20+AA21+AA22+AA23 -> 0 | AB26: Despesas e encargos | AC26: =AC20+AC21+AC22+AC23 -> 0 | AD26: Despesas e encargos | AE26: =AE20+AE21+AE22+AE23 -> 0
B27: Mais-valia | C27: =(C8-(C18*C25)-C26)*C16 -> 34625 | D27: Mais-valia | E27: =($C$8-(E18*E25)-E26)*E16 -> 42125 | F27: Mais-valia | G27: =($C$8-(G18*G25)-G26)*G16 ->  | H27: Mais-valia | I27: =($C$8-(I18*I25)-I26)*I16 ->  | J27: Mais-valia | K27: =($C$8-(K18*K25)-K26)*K16 ->  | L27: Mais-valia | M27: =($C$8-(M18*M25)-M26)*M16 ->  | N27: Mais-valia | O27: =($C$8-(O18*O25)-O26)*O16 ->  | P27: Mais-valia | Q27: =($C$8-(Q18*Q25)-Q26)*Q16 ->  | R27: Mais-valia | S27: =($C$8-(S18*S25)-S26)*S16 ->  | T27: Mais-valia | U27: =($C$8-(U18*U25)-U26)*U16 ->  | V27: Mais-valia | W27: =($C$8-(W18*W25)-W26)*W16 ->  | X27: Mais-valia | Y27: =($C$8-(Y18*Y25)-Y26)*Y16 ->  | Z27: Mais-valia | AA27: =($C$8-(AA18*AA25)-AA26)*AA16 ->  | AB27: Mais-valia | AC27: =($C$8-(AC18*AC25)-AC26)*AC16 ->  | AD27: Mais-valia | AE27: =($C$8-(AE18*AE25)-AE26)*AE16 -> 
B28: Art 43º (50%) | C28: =C27/2 -> 17312.5 | D28: Art 43º (50%) | E28: =E27/2 -> 21062.5 | F28: Art 43º (50%) | G28: =G27/2 ->  | H28: Art 43º (50%) | I28: =I27/2 ->  | J28: Art 43º (50%) | K28: =K27/2 ->  | L28: Art 43º (50%) | M28: =M27/2 ->  | N28: Art 43º (50%) | O28: =O27/2 ->  | P28: Art 43º (50%) | Q28: =Q27/2 ->  | R28: Art 43º (50%) | S28: =S27/2 ->  | T28: Art 43º (50%) | U28: =U27/2 ->  | V28: Art 43º (50%) | W28: =W27/2 ->  | X28: Art 43º (50%) | Y28: =Y27/2 ->  | Z28: Art 43º (50%) | AA28: =AA27/2 ->  | AB28: Art 43º (50%) | AC28: =AC27/2 ->  | AD28: Art 43º (50%) | AE28: =AE27/2 -> 
B29: Dados pessoais | D29: Dados pessoais | F29: Dados pessoais | H29: Dados pessoais | J29: Dados pessoais | L29: Dados pessoais | N29: Dados pessoais | P29: Dados pessoais | R29: Dados pessoais | T29: Dados pessoais | V29: Dados pessoais | X29: Dados pessoais | Z29: Dados pessoais | AB29: Dados pessoais | AD29: Dados pessoais
B30: Rendimento anual coletável | C30: 30000 | D30: Rendimento anual coletável | E30: 30000 | F30: Rendimento anual coletável | G30: 30000 | H30: Rendimento anual coletável | I30: 30000 | J30: Rendimento anual coletável | K30: 30000 | L30: Rendimento anual coletável | M30: 30000 | N30: Rendimento anual coletável | P30: Rendimento anual coletável | R30: Rendimento anual coletável | T30: Rendimento anual coletável | V30: Rendimento anual coletável | X30: Rendimento anual coletável | Z30: Rendimento anual coletável | AB30: Rendimento anual coletável | AD30: Rendimento anual coletável
B31: Taxa de IRS | C31: =IFERROR( ( (C30 * INDEX('Tabelas IRS'!$C$2:$C$12, MATCH(C30, 'Tabelas IRS'!$A$2:$A$12, 1))) - INDEX('Tabelas IRS'!$D$2:$D$12, MATCH(C30, 'Tabelas IRS'!$A$2:$A$12, 1)) ) / C30, 0 ) -> 0.2208953333 | D31: Taxa de IRS | E31: =IFERROR( ( (E30 * INDEX('Tabelas IRS'!$C$2:$C$12, MATCH(E30, 'Tabelas IRS'!$A$2:$A$12, 1))) - INDEX('Tabelas IRS'!$D$2:$D$12, MATCH(E30, 'Tabelas IRS'!$A$2:$A$12, 1)) ) / E30, 0 ) -> 0.2208953333 | F31: Taxa de IRS | G31: =IFERROR( ( (G30 * INDEX('Tabelas IRS'!$C$2:$C$12, MATCH(G30, 'Tabelas IRS'!$A$2:$A$12, 1))) - INDEX('Tabelas IRS'!$D$2:$D$12, MATCH(G30, 'Tabelas IRS'!$A$2:$A$12, 1)) ) / G30, 0 ) -> 0.2208953333 | H31: Taxa de IRS | I31: =IFERROR( ( (I30 * INDEX('Tabelas IRS'!$C$2:$C$12, MATCH(I30, 'Tabelas IRS'!$A$2:$A$12, 1))) - INDEX('Tabelas IRS'!$D$2:$D$12, MATCH(I30, 'Tabelas IRS'!$A$2:$A$12, 1)) ) / I30, 0 ) -> 0.2208953333 | J31: Taxa de IRS | K31: =IFERROR( ( (K30 * INDEX('Tabelas IRS'!$C$2:$C$12, MATCH(K30, 'Tabelas IRS'!$A$2:$A$12, 1))) - INDEX('Tabelas IRS'!$D$2:$D$12, MATCH(K30, 'Tabelas IRS'!$A$2:$A$12, 1)) ) / K30, 0 ) -> 0.2208953333 | L31: Taxa de IRS | M31: =IFERROR( ( (M30 * INDEX('Tabelas IRS'!$C$2:$C$12, MATCH(M30, 'Tabelas IRS'!$A$2:$A$12, 1))) - INDEX('Tabelas IRS'!$D$2:$D$12, MATCH(M30, 'Tabelas IRS'!$A$2:$A$12, 1)) ) / M30, 0 ) -> 0.2208953333 | N31: Taxa de IRS | O31: =IFERROR( ( (O30 * INDEX('Tabelas IRS'!$C$2:$C$12, MATCH(O30, 'Tabelas IRS'!$A$2:$A$12, 1))) - INDEX('Tabelas IRS'!$D$2:$D$12, MATCH(O30, 'Tabelas IRS'!$A$2:$A$12, 1)) ) / O30, 0 ) -> 0 | P31: Taxa de IRS | Q31: =IFERROR( ( (Q30 * INDEX('Tabelas IRS'!$C$2:$C$12, MATCH(Q30, 'Tabelas IRS'!$A$2:$A$12, 1))) - INDEX('Tabelas IRS'!$D$2:$D$12, MATCH(Q30, 'Tabelas IRS'!$A$2:$A$12, 1)) ) / Q30, 0 ) -> 0 | R31: Taxa de IRS | S31: =IFERROR( ( (S30 * INDEX('Tabelas IRS'!$C$2:$C$12, MATCH(S30, 'Tabelas IRS'!$A$2:$A$12, 1))) - INDEX('Tabelas IRS'!$D$2:$D$12, MATCH(S30, 'Tabelas IRS'!$A$2:$A$12, 1)) ) / S30, 0 ) -> 0 | T31: Taxa de IRS | U31: =IFERROR( ( (U30 * INDEX('Tabelas IRS'!$C$2:$C$12, MATCH(U30, 'Tabelas IRS'!$A$2:$A$12, 1))) - INDEX('Tabelas IRS'!$D$2:$D$12, MATCH(U30, 'Tabelas IRS'!$A$2:$A$12, 1)) ) / U30, 0 ) -> 0 | V31: Taxa de IRS | W31: =IFERROR( ( (W30 * INDEX('Tabelas IRS'!$C$2:$C$12, MATCH(W30, 'Tabelas IRS'!$A$2:$A$12, 1))) - INDEX('Tabelas IRS'!$D$2:$D$12, MATCH(W30, 'Tabelas IRS'!$A$2:$A$12, 1)) ) / W30, 0 ) -> 0 | X31: Taxa de IRS | Y31: =IFERROR( ( (Y30 * INDEX('Tabelas IRS'!$C$2:$C$12, MATCH(Y30, 'Tabelas IRS'!$A$2:$A$12, 1))) - INDEX('Tabelas IRS'!$D$2:$D$12, MATCH(Y30, 'Tabelas IRS'!$A$2:$A$12, 1)) ) / Y30, 0 ) -> 0 | Z31: Taxa de IRS | AA31: =IFERROR( ( (AA30 * INDEX('Tabelas IRS'!$C$2:$C$12, MATCH(AA30, 'Tabelas IRS'!$A$2:$A$12, 1))) - INDEX('Tabelas IRS'!$D$2:$D$12, MATCH(AA30, 'Tabelas IRS'!$A$2:$A$12, 1)) ) / AA30, 0 ) -> 0 | AB31: Taxa de IRS | AC31: =IFERROR( ( (AC30 * INDEX('Tabelas IRS'!$C$2:$C$12, MATCH(AC30, 'Tabelas IRS'!$A$2:$A$12, 1))) - INDEX('Tabelas IRS'!$D$2:$D$12, MATCH(AC30, 'Tabelas IRS'!$A$2:$A$12, 1)) ) / AC30, 0 ) -> 0 | AD31: Taxa de IRS | AE31: =IFERROR( ( (AE30 * INDEX('Tabelas IRS'!$C$2:$C$12, MATCH(AE30, 'Tabelas IRS'!$A$2:$A$12, 1))) - INDEX('Tabelas IRS'!$D$2:$D$12, MATCH(AE30, 'Tabelas IRS'!$A$2:$A$12, 1)) ) / AE30, 0 ) -> 0
B32: Rendimento anual com mais-valia | C32: =C30+C28 -> 47312.5 | D32: Rendimento anual com mais-valia | E32: =E30+E28 -> 51062.5 | F32: Rendimento anual com mais-valia | G32: =G30+G28 ->  | H32: Rendimento anual com mais-valia | I32: =I30+I28 ->  | J32: Rendimento anual com mais-valia | K32: =K30+K28 ->  | L32: Rendimento anual com mais-valia | M32: =M30+M28 ->  | N32: Rendimento anual com mais-valia | O32: =O30+O28 ->  | P32: Rendimento anual com mais-valia | Q32: =Q30+Q28 ->  | R32: Rendimento anual com mais-valia | S32: =S30+S28 ->  | T32: Rendimento anual com mais-valia | U32: =U30+U28 ->  | V32: Rendimento anual com mais-valia | W32: =W30+W28 ->  | X32: Rendimento anual com mais-valia | Y32: =Y30+Y28 ->  | Z32: Rendimento anual com mais-valia | AA32: =AA30+AA28 ->  | AB32: Rendimento anual com mais-valia | AC32: =AC30+AC28 ->  | AD32: Rendimento anual com mais-valia | AE32: =AE30+AE28 -> 
B33: Taxa de IRS | C33: =IFERROR( ( (C32 * INDEX('Tabelas IRS'!$C$2:$C$12, MATCH(C32, 'Tabelas IRS'!$A$2:$A$12, 1))) - INDEX('Tabelas IRS'!$D$2:$D$12, MATCH(C32, 'Tabelas IRS'!$A$2:$A$12, 1)) ) / C32, 0 ) -> 0.2803116513 | D33: Taxa de IRS | E33: =IFERROR( ( (E32 * INDEX('Tabelas IRS'!$C$2:$C$12, MATCH(E32, 'Tabelas IRS'!$A$2:$A$12, 1))) - INDEX('Tabelas IRS'!$D$2:$D$12, MATCH(E32, 'Tabelas IRS'!$A$2:$A$12, 1)) ) / E32, 0 ) -> 0.2927734639 | F33: Taxa de IRS | G33: =IFERROR( ( (G32 * INDEX('Tabelas IRS'!$C$2:$C$12, MATCH(G32, 'Tabelas IRS'!$A$2:$A$12, 1))) - INDEX('Tabelas IRS'!$D$2:$D$12, MATCH(G32, 'Tabelas IRS'!$A$2:$A$12, 1)) ) / G32, 0 ) -> 0 | H33: Taxa de IRS | I33: =IFERROR( ( (I32 * INDEX('Tabelas IRS'!$C$2:$C$12, MATCH(I32, 'Tabelas IRS'!$A$2:$A$12, 1))) - INDEX('Tabelas IRS'!$D$2:$D$12, MATCH(I32, 'Tabelas IRS'!$A$2:$A$12, 1)) ) / I32, 0 ) -> 0 | J33: Taxa de IRS | K33: =IFERROR( ( (K32 * INDEX('Tabelas IRS'!$C$2:$C$12, MATCH(K32, 'Tabelas IRS'!$A$2:$A$12, 1))) - INDEX('Tabelas IRS'!$D$2:$D$12, MATCH(K32, 'Tabelas IRS'!$A$2:$A$12, 1)) ) / K32, 0 ) -> 0 | L33: Taxa de IRS | M33: =IFERROR( ( (M32 * INDEX('Tabelas IRS'!$C$2:$C$12, MATCH(M32, 'Tabelas IRS'!$A$2:$A$12, 1))) - INDEX('Tabelas IRS'!$D$2:$D$12, MATCH(M32, 'Tabelas IRS'!$A$2:$A$12, 1)) ) / M32, 0 ) -> 0 | N33: Taxa de IRS | O33: =IFERROR( ( (O32 * INDEX('Tabelas IRS'!$C$2:$C$12, MATCH(O32, 'Tabelas IRS'!$A$2:$A$12, 1))) - INDEX('Tabelas IRS'!$D$2:$D$12, MATCH(O32, 'Tabelas IRS'!$A$2:$A$12, 1)) ) / O32, 0 ) -> 0 | P33: Taxa de IRS | Q33: =IFERROR( ( (Q32 * INDEX('Tabelas IRS'!$C$2:$C$12, MATCH(Q32, 'Tabelas IRS'!$A$2:$A$12, 1))) - INDEX('Tabelas IRS'!$D$2:$D$12, MATCH(Q32, 'Tabelas IRS'!$A$2:$A$12, 1)) ) / Q32, 0 ) -> 0 | R33: Taxa de IRS | S33: =IFERROR( ( (S32 * INDEX('Tabelas IRS'!$C$2:$C$12, MATCH(S32, 'Tabelas IRS'!$A$2:$A$12, 1))) - INDEX('Tabelas IRS'!$D$2:$D$12, MATCH(S32, 'Tabelas IRS'!$A$2:$A$12, 1)) ) / S32, 0 ) -> 0 | T33: Taxa de IRS | U33: =IFERROR( ( (U32 * INDEX('Tabelas IRS'!$C$2:$C$12, MATCH(U32, 'Tabelas IRS'!$A$2:$A$12, 1))) - INDEX('Tabelas IRS'!$D$2:$D$12, MATCH(U32, 'Tabelas IRS'!$A$2:$A$12, 1)) ) / U32, 0 ) -> 0 | V33: Taxa de IRS | W33: =IFERROR( ( (W32 * INDEX('Tabelas IRS'!$C$2:$C$12, MATCH(W32, 'Tabelas IRS'!$A$2:$A$12, 1))) - INDEX('Tabelas IRS'!$D$2:$D$12, MATCH(W32, 'Tabelas IRS'!$A$2:$A$12, 1)) ) / W32, 0 ) -> 0 | X33: Taxa de IRS | Y33: =IFERROR( ( (Y32 * INDEX('Tabelas IRS'!$C$2:$C$12, MATCH(Y32, 'Tabelas IRS'!$A$2:$A$12, 1))) - INDEX('Tabelas IRS'!$D$2:$D$12, MATCH(Y32, 'Tabelas IRS'!$A$2:$A$12, 1)) ) / Y32, 0 ) -> 0 | Z33: Taxa de IRS | AA33: =IFERROR( ( (AA32 * INDEX('Tabelas IRS'!$C$2:$C$12, MATCH(AA32, 'Tabelas IRS'!$A$2:$A$12, 1))) - INDEX('Tabelas IRS'!$D$2:$D$12, MATCH(AA32, 'Tabelas IRS'!$A$2:$A$12, 1)) ) / AA32, 0 ) -> 0 | AB33: Taxa de IRS | AC33: =IFERROR( ( (AC32 * INDEX('Tabelas IRS'!$C$2:$C$12, MATCH(AC32, 'Tabelas IRS'!$A$2:$A$12, 1))) - INDEX('Tabelas IRS'!$D$2:$D$12, MATCH(AC32, 'Tabelas IRS'!$A$2:$A$12, 1)) ) / AC32, 0 ) -> 0 | AD33: Taxa de IRS | AE33: =IFERROR( ( (AE32 * INDEX('Tabelas IRS'!$C$2:$C$12, MATCH(AE32, 'Tabelas IRS'!$A$2:$A$12, 1))) - INDEX('Tabelas IRS'!$D$2:$D$12, MATCH(AE32, 'Tabelas IRS'!$A$2:$A$12, 1)) ) / AE32, 0 ) -> 0
B34: Imposto da Mais-valia | C34: =C32*C33-INDEX('Tabelas IRS'!D4:D12,MATCH(C32,'Tabelas IRS'!B4:B12,1))-(C30*C31-INDEX('Tabelas IRS'!D4:D12,MATCH(C32,'Tabelas IRS'!B4:B12,1))) -> 6635.385 | D34: Imposto da Mais-valia | E34: =E32*E33-INDEX('Tabelas IRS'!$D$2:$D$12, MATCH(E32, 'Tabelas IRS'!$A$2:$A$12, 1))-(E30*E31-INDEX('Tabelas IRS'!$D$2:$D$12, MATCH(E32, 'Tabelas IRS'!$A$2:$A$12, 1))) -> 8322.885 | F34: Imposto da Mais-valia | G34: =G32*G33-INDEX('Tabelas IRS'!$D$2:$D$12, MATCH(G32, 'Tabelas IRS'!$A$2:$A$12, 1))-(G30*G31-INDEX('Tabelas IRS'!$D$2:$D$12, MATCH(G32, 'Tabelas IRS'!$A$2:$A$12, 1))) ->  | H34: Imposto da Mais-valia | I34: =I32*I33-INDEX('Tabelas IRS'!$D$2:$D$12, MATCH(I32, 'Tabelas IRS'!$A$2:$A$12, 1))-(I30*I31-INDEX('Tabelas IRS'!$D$2:$D$12, MATCH(I32, 'Tabelas IRS'!$A$2:$A$12, 1))) ->  | J34: Imposto da Mais-valia | K34: =K32*K33-INDEX('Tabelas IRS'!$D$2:$D$12, MATCH(K32, 'Tabelas IRS'!$A$2:$A$12, 1))-(K30*K31-INDEX('Tabelas IRS'!$D$2:$D$12, MATCH(K32, 'Tabelas IRS'!$A$2:$A$12, 1))) ->  | L34: Imposto da Mais-valia | M34: =M32*M33-INDEX('Tabelas IRS'!$D$2:$D$12, MATCH(M32, 'Tabelas IRS'!$A$2:$A$12, 1))-(M30*M31-INDEX('Tabelas IRS'!$D$2:$D$12, MATCH(M32, 'Tabelas IRS'!$A$2:$A$12, 1))) ->  | N34: Imposto da Mais-valia | O34: =O32*O33-INDEX('Tabelas IRS'!$D$2:$D$12, MATCH(O32, 'Tabelas IRS'!$A$2:$A$12, 1))-(O30*O31-INDEX('Tabelas IRS'!$D$2:$D$12, MATCH(O32, 'Tabelas IRS'!$A$2:$A$12, 1))) ->  | P34: Imposto da Mais-valia | Q34: =Q32*Q33-INDEX('Tabelas IRS'!$D$2:$D$12, MATCH(Q32, 'Tabelas IRS'!$A$2:$A$12, 1))-(Q30*Q31-INDEX('Tabelas IRS'!$D$2:$D$12, MATCH(Q32, 'Tabelas IRS'!$A$2:$A$12, 1))) ->  | R34: Imposto da Mais-valia | S34: =S32*S33-INDEX('Tabelas IRS'!$D$2:$D$12, MATCH(S32, 'Tabelas IRS'!$A$2:$A$12, 1))-(S30*S31-INDEX('Tabelas IRS'!$D$2:$D$12, MATCH(S32, 'Tabelas IRS'!$A$2:$A$12, 1))) ->  | T34: Imposto da Mais-valia | U34: =U32*U33-INDEX('Tabelas IRS'!$D$2:$D$12, MATCH(U32, 'Tabelas IRS'!$A$2:$A$12, 1))-(U30*U31-INDEX('Tabelas IRS'!$D$2:$D$12, MATCH(U32, 'Tabelas IRS'!$A$2:$A$12, 1))) ->  | V34: Imposto da Mais-valia | W34: =W32*W33-INDEX('Tabelas IRS'!$D$2:$D$12, MATCH(W32, 'Tabelas IRS'!$A$2:$A$12, 1))-(W30*W31-INDEX('Tabelas IRS'!$D$2:$D$12, MATCH(W32, 'Tabelas IRS'!$A$2:$A$12, 1))) ->  | X34: Imposto da Mais-valia | Y34: =Y32*Y33-INDEX('Tabelas IRS'!$D$2:$D$12, MATCH(Y32, 'Tabelas IRS'!$A$2:$A$12, 1))-(Y30*Y31-INDEX('Tabelas IRS'!$D$2:$D$12, MATCH(Y32, 'Tabelas IRS'!$A$2:$A$12, 1))) ->  | Z34: Imposto da Mais-valia | AA34: =AA32*AA33-INDEX('Tabelas IRS'!$D$2:$D$12, MATCH(AA32, 'Tabelas IRS'!$A$2:$A$12, 1))-(AA30*AA31-INDEX('Tabelas IRS'!$D$2:$D$12, MATCH(AA32, 'Tabelas IRS'!$A$2:$A$12, 1))) ->  | AB34: Imposto da Mais-valia | AC34: =AC32*AC33-INDEX('Tabelas IRS'!$D$2:$D$12, MATCH(AC32, 'Tabelas IRS'!$A$2:$A$12, 1))-(AC30*AC31-INDEX('Tabelas IRS'!$D$2:$D$12, MATCH(AC32, 'Tabelas IRS'!$A$2:$A$12, 1))) ->  | AD34: Imposto da Mais-valia | AE34: =AE32*AE33-INDEX('Tabelas IRS'!$D$2:$D$12, MATCH(AE32, 'Tabelas IRS'!$A$2:$A$12, 1))-(AE30*AE31-INDEX('Tabelas IRS'!$D$2:$D$12, MATCH(AE32, 'Tabelas IRS'!$A$2:$A$12, 1))) -> 
B36: Usufrutuário 1 | D36: Usufrutuário 2 | F36: Usufrutuário 3 | H36: Usufrutuário 4 | J36: Usufrutuário 5 | L36: Usufrutuário 6 | N36: Usufrutuário 7 | P36: Usufrutuário 8 | R36: Usufrutuário 9 | T36: Usufrutuário 10 | V36: Usufrutuário 11 | X36: Usufrutuário 12 | Z36: Usufrutuário 13 | AB36: Usufrutuário 14 | AD36: Usufrutuário 15
B37: Nome | C37: João | D37: Nome | E37: Maria | F37: Nome | H37: Nome | J37: Nome | L37: Nome | N37: Nome | P37: Nome | R37: Nome | T37: Nome | V37: Nome | X37: Nome | Z37: Nome | AB37: Nome | AD37: Nome
B38: Idade | C38: 65 | D38: Idade | E38: 55 | F38: Idade | H38: Idade | J38: Idade | L38: Idade | N38: Idade | P38: Idade | R38: Idade | T38: Idade | V38: Idade | X38: Idade | Z38: Idade | AB38: Idade | AD38: Idade
A39: =SUM(INDEX(39:39, _xlfn.SEQUENCE(C3, , 3, 2))) -> 1 | B39: Quota-parte do direito | C39: 0.5 | D39: Quota-parte do direito | E39: 0.5 | F39: Quota-parte do direito | H39: Quota-parte do direito | J39: Quota-parte do direito | L39: Quota-parte do direito | N39: Quota-parte do direito | P39: Quota-parte do direito | R39: Quota-parte do direito | T39: Quota-parte do direito | V39: Quota-parte do direito | X39: Quota-parte do direito | Z39: Quota-parte do direito | AB39: Quota-parte do direito | AD39: Quota-parte do direito
A40: =IF(A39<>100%, "As percentagens dos usufrutuários não totalizam 100%, voltar a confirmar quotas de todos os proprietários", "") ->  | B40: Origem | C40: Aquisição | D40: Origem | E40: Aquisição | F40: Origem | H40: Origem | J40: Origem | L40: Origem | N40: Origem | P40: Origem | R40: Origem | T40: Origem | V40: Origem | X40: Origem | Z40: Origem | AB40: Origem | AD40: Origem
B41: =IF(C40="Herança direta", "Valor patrimonial", IF(C40="Herança de terceiro", "Valor do imóvel na doação", IF(C40="Aquisição", "Valor de aquisição", ""))) -> Valor de aquisição | C41: 75000 | D41: =IF(E40="Herança direta", "Valor patrimonial", IF(E40="Herança de terceiro", "Valor do imóvel na doação", IF(E40="Aquisição", "Valor de aquisição", ""))) -> Valor de aquisição | E41: 75000 | F41: =IF(G40="Herança direta", "Valor patrimonial", IF(G40="Herança de terceiro", "Valor do imóvel na doação", IF(G40="Aquisição", "Valor de aquisição", ""))) ->  | H41: =IF(I40="Herança direta", "Valor patrimonial", IF(I40="Herança de terceiro", "Valor do imóvel na doação", IF(I40="Aquisição", "Valor de aquisição", ""))) ->  | J41: =IF(K40="Herança direta", "Valor patrimonial", IF(K40="Herança de terceiro", "Valor do imóvel na doação", IF(K40="Aquisição", "Valor de aquisição", ""))) ->  | L41: =IF(M40="Herança direta", "Valor patrimonial", IF(M40="Herança de terceiro", "Valor do imóvel na doação", IF(M40="Aquisição", "Valor de aquisição", ""))) ->  | N41: =IF(O40="Herança direta", "Valor patrimonial", IF(O40="Herança de terceiro", "Valor do imóvel na doação", IF(O40="Aquisição", "Valor de aquisição", ""))) ->  | P41: =IF(Q40="Herança direta", "Valor patrimonial", IF(Q40="Herança de terceiro", "Valor do imóvel na doação", IF(Q40="Aquisição", "Valor de aquisição", ""))) ->  | R41: =IF(S40="Herança direta", "Valor patrimonial", IF(S40="Herança de terceiro", "Valor do imóvel na doação", IF(S40="Aquisição", "Valor de aquisição", ""))) ->  | T41: =IF(U40="Herança direta", "Valor patrimonial", IF(U40="Herança de terceiro", "Valor do imóvel na doação", IF(U40="Aquisição", "Valor de aquisição", ""))) ->  | V41: =IF(W40="Herança direta", "Valor patrimonial", IF(W40="Herança de terceiro", "Valor do imóvel na doação", IF(W40="Aquisição", "Valor de aquisição", ""))) ->  | X41: =IF(Y40="Herança direta", "Valor patrimonial", IF(Y40="Herança de terceiro", "Valor do imóvel na doação", IF(Y40="Aquisição", "Valor de aquisição", ""))) ->  | Z41: =IF(AA40="Herança direta", "Valor patrimonial", IF(AA40="Herança de terceiro", "Valor do imóvel na doação", IF(AA40="Aquisição", "Valor de aquisição", ""))) ->  | AB41: =IF(AC40="Herança direta", "Valor patrimonial", IF(AC40="Herança de terceiro", "Valor do imóvel na doação", IF(AC40="Aquisição", "Valor de aquisição", ""))) ->  | AD41: =IF(AE40="Herança direta", "Valor patrimonial", IF(AE40="Herança de terceiro", "Valor do imóvel na doação", IF(AE40="Aquisição", "Valor de aquisição", ""))) -> 
B42: Ano de aquisição | C42: 2013 | D42: Ano de aquisição | E42: 2013 | F42: Ano de aquisição | H42: Ano de aquisição | J42: Ano de aquisição | L42: Ano de aquisição | N42: Ano de aquisição | P42: Ano de aquisição | R42: Ano de aquisição | T42: Ano de aquisição | V42: Ano de aquisição | X42: Ano de aquisição | Z42: Ano de aquisição | AB42: Ano de aquisição | AD42: Ano de aquisição
B43: Obras nos últimos 12 anos | C43: 0 | D43: Obras nos últimos 12 anos | E43: 5000 | F43: Obras nos últimos 12 anos | H43: Obras nos últimos 12 anos | J43: Obras nos últimos 12 anos | L43: Obras nos últimos 12 anos | N43: Obras nos últimos 12 anos | P43: Obras nos últimos 12 anos | R43: Obras nos últimos 12 anos | T43: Obras nos últimos 12 anos | V43: Obras nos últimos 12 anos | X43: Obras nos últimos 12 anos | Z43: Obras nos últimos 12 anos | AB43: Obras nos últimos 12 anos | AD43: Obras nos últimos 12 anos
B44: Impostos pagos na aquisição | C44: 100 | D44: Impostos pagos na aquisição | E44: 100 | F44: Impostos pagos na aquisição | H44: Impostos pagos na aquisição | J44: Impostos pagos na aquisição | L44: Impostos pagos na aquisição | N44: Impostos pagos na aquisição | P44: Impostos pagos na aquisição | R44: Impostos pagos na aquisição | T44: Impostos pagos na aquisição | V44: Impostos pagos na aquisição | X44: Impostos pagos na aquisição | Z44: Impostos pagos na aquisição | AB44: Impostos pagos na aquisição | AD44: Impostos pagos na aquisição
B45: Comissão imobiliária | C45: 2460 | D45: Comissão imobiliária | E45: 2460 | F45: Comissão imobiliária | H45: Comissão imobiliária | J45: Comissão imobiliária | L45: Comissão imobiliária | N45: Comissão imobiliária | P45: Comissão imobiliária | R45: Comissão imobiliária | T45: Comissão imobiliária | V45: Comissão imobiliária | X45: Comissão imobiliária | Z45: Comissão imobiliária | AB45: Comissão imobiliária | AD45: Comissão imobiliária
B46: Outros encargos dedutíveis | C46: 0 | D46: Outros encargos dedutíveis | E46: 0 | F46: Outros encargos dedutíveis | H46: Outros encargos dedutíveis | J46: Outros encargos dedutíveis | L46: Outros encargos dedutíveis | N46: Outros encargos dedutíveis | P46: Outros encargos dedutíveis | R46: Outros encargos dedutíveis | T46: Outros encargos dedutíveis | V46: Outros encargos dedutíveis | X46: Outros encargos dedutíveis | Z46: Outros encargos dedutíveis | AB46: Outros encargos dedutíveis | AD46: Outros encargos dedutíveis
B47: Cálculo da mais valia | D47: Cálculo da mais valia | F47: Cálculo da mais valia | H47: Cálculo da mais valia | J47: Cálculo da mais valia | L47: Cálculo da mais valia | N47: Cálculo da mais valia | P47: Cálculo da mais valia | R47: Cálculo da mais valia | T47: Cálculo da mais valia | V47: Cálculo da mais valia | X47: Cálculo da mais valia | Z47: Cálculo da mais valia | AB47: Cálculo da mais valia | AD47: Cálculo da mais valia
B48: Coeficiente de atualização | C48: =VLOOKUP(C42, 'Coeficiente de atualização'!B2:C154, 2, FALSE) -> 1.17 | D48: Coeficiente de atualização | E48: =VLOOKUP(E42, 'Coeficiente de atualização'!$B$2:$C$154, 2, FALSE) -> 1.17 | F48: Coeficiente de atualização | G48: =VLOOKUP(G42, 'Coeficiente de atualização'!$B$2:$C$154, 2, FALSE) ->  | H48: Coeficiente de atualização | I48: =VLOOKUP(I42, 'Coeficiente de atualização'!$B$2:$C$154, 2, FALSE) ->  | J48: Coeficiente de atualização | K48: =VLOOKUP(K42, 'Coeficiente de atualização'!$B$2:$C$154, 2, FALSE) ->  | L48: Coeficiente de atualização | M48: =VLOOKUP(M42, 'Coeficiente de atualização'!$B$2:$C$154, 2, FALSE) ->  | N48: Coeficiente de atualização | O48: =VLOOKUP(O42, 'Coeficiente de atualização'!$B$2:$C$154, 2, FALSE) ->  | P48: Coeficiente de atualização | Q48: =VLOOKUP(Q42, 'Coeficiente de atualização'!$B$2:$C$154, 2, FALSE) ->  | R48: Coeficiente de atualização | S48: =VLOOKUP(S42, 'Coeficiente de atualização'!$B$2:$C$154, 2, FALSE) ->  | T48: Coeficiente de atualização | U48: =VLOOKUP(U42, 'Coeficiente de atualização'!$B$2:$C$154, 2, FALSE) ->  | V48: Coeficiente de atualização | W48: =VLOOKUP(W42, 'Coeficiente de atualização'!$B$2:$C$154, 2, FALSE) ->  | X48: Coeficiente de atualização | Y48: =VLOOKUP(Y42, 'Coeficiente de atualização'!$B$2:$C$154, 2, FALSE) ->  | Z48: Coeficiente de atualização | AA48: =VLOOKUP(AA42, 'Coeficiente de atualização'!$B$2:$C$154, 2, FALSE) ->  | AB48: Coeficiente de atualização | AC48: =VLOOKUP(AC42, 'Coeficiente de atualização'!$B$2:$C$154, 2, FALSE) ->  | AD48: Coeficiente de atualização | AE48: =VLOOKUP(AE42, 'Coeficiente de atualização'!$B$2:$C$154, 2, FALSE) -> 
B49: Despesas e encargos | C49: =C43+C44+C45+C46 -> 2560 | D49: Despesas e encargos | E49: =E43+E44+E45+E46 -> 7560 | F49: Despesas e encargos | G49: =G43+G44+G45+G46 -> 0 | H49: Despesas e encargos | I49: =I43+I44+I45+I46 -> 0 | J49: Despesas e encargos | K49: =K43+K44+K45+K46 -> 0 | L49: Despesas e encargos | M49: =M43+M44+M45+M46 -> 0 | N49: Despesas e encargos | O49: =O43+O44+O45+O46 -> 0 | P49: Despesas e encargos | Q49: =Q43+Q44+Q45+Q46 -> 0 | R49: Despesas e encargos | S49: =S43+S44+S45+S46 -> 0 | T49: Despesas e encargos | U49: =U43+U44+U45+U46 -> 0 | V49: Despesas e encargos | W49: =W43+W44+W45+W46 -> 0 | X49: Despesas e encargos | Y49: =Y43+Y44+Y45+Y46 -> 0 | Z49: Despesas e encargos | AA49: =AA43+AA44+AA45+AA46 -> 0 | AB49: Despesas e encargos | AC49: =AC43+AC44+AC45+AC46 -> 0 | AD49: Despesas e encargos | AE49: =AE43+AE44+AE45+AE46 -> 0
A50: =C50+E50 -> 0.5 | B50: Quota-parte da mais-valia | C50: =VLOOKUP(C38, 'Art 13 CIMT'!B3:C12, 2, TRUE)*C39 -> 0.2 | D50: Quota-parte da mais-valia | E50: =VLOOKUP(E38, 'Art 13 CIMT'!$B$3:$C$12, 2, TRUE)*E39 -> 0.3 | F50: Quota-parte da mais-valia | G50: =VLOOKUP(G38, 'Art 13 CIMT'!$B$3:$C$12, 2, TRUE)*G39 -> 0 | H50: Quota-parte da mais-valia | I50: =VLOOKUP(I38, 'Art 13 CIMT'!$B$3:$C$12, 2, TRUE)*I39 -> 0 | J50: Quota-parte da mais-valia | K50: =VLOOKUP(K38, 'Art 13 CIMT'!$B$3:$C$12, 2, TRUE)*K39 -> 0 | L50: Quota-parte da mais-valia | M50: =VLOOKUP(M38, 'Art 13 CIMT'!$B$3:$C$12, 2, TRUE)*M39 -> 0 | N50: Quota-parte da mais-valia | O50: =VLOOKUP(O38, 'Art 13 CIMT'!$B$3:$C$12, 2, TRUE)*O39 -> 0 | P50: Quota-parte da mais-valia | Q50: =VLOOKUP(Q38, 'Art 13 CIMT'!$B$3:$C$12, 2, TRUE)*Q39 -> 0 | R50: Quota-parte da mais-valia | S50: =VLOOKUP(S38, 'Art 13 CIMT'!$B$3:$C$12, 2, TRUE)*S39 -> 0 | T50: Quota-parte da mais-valia | U50: =VLOOKUP(U38, 'Art 13 CIMT'!$B$3:$C$12, 2, TRUE)*U39 -> 0 | V50: Quota-parte da mais-valia | W50: =VLOOKUP(W38, 'Art 13 CIMT'!$B$3:$C$12, 2, TRUE)*W39 -> 0 | X50: Quota-parte da mais-valia | Y50: =VLOOKUP(Y38, 'Art 13 CIMT'!$B$3:$C$12, 2, TRUE)*Y39 -> 0 | Z50: Quota-parte da mais-valia | AA50: =VLOOKUP(AA38, 'Art 13 CIMT'!$B$3:$C$12, 2, TRUE)*AA39 -> 0 | AB50: Quota-parte da mais-valia | AC50: =VLOOKUP(AC38, 'Art 13 CIMT'!$B$3:$C$12, 2, TRUE)*AC39 -> 0 | AD50: Quota-parte da mais-valia | AE50: =VLOOKUP(AE38, 'Art 13 CIMT'!$B$3:$C$12, 2, TRUE)*AE39 -> 0
B51: Mais-valia do usufrutuário | C51: =(C8-(C41*C48)-C49)*C50 -> 17938 | D51: Mais-valia do usufrutuário | E51: =($C$8-(E41*E48)-E49)*E50 -> 25407 | F51: Mais-valia do usufrutuário | G51: =($C$8-(G41*G48)-G49)*G50 ->  | H51: Mais-valia do usufrutuário | I51: =($C$8-(I41*I48)-I49)*I50 ->  | J51: Mais-valia do usufrutuário | K51: =($C$8-(K41*K48)-K49)*K50 ->  | L51: Mais-valia do usufrutuário | M51: =($C$8-(M41*M48)-M49)*M50 ->  | N51: Mais-valia do usufrutuário | O51: =($C$8-(O41*O48)-O49)*O50 ->  | P51: Mais-valia do usufrutuário | Q51: =($C$8-(Q41*Q48)-Q49)*Q50 ->  | R51: Mais-valia do usufrutuário | S51: =($C$8-(S41*S48)-S49)*S50 ->  | T51: Mais-valia do usufrutuário | U51: =($C$8-(U41*U48)-U49)*U50 ->  | V51: Mais-valia do usufrutuário | W51: =($C$8-(W41*W48)-W49)*W50 ->  | X51: Mais-valia do usufrutuário | Y51: =($C$8-(Y41*Y48)-Y49)*Y50 ->  | Z51: Mais-valia do usufrutuário | AA51: =($C$8-(AA41*AA48)-AA49)*AA50 ->  | AB51: Mais-valia do usufrutuário | AC51: =($C$8-(AC41*AC48)-AC49)*AC50 ->  | AD51: Mais-valia do usufrutuário | AE51: =($C$8-(AE41*AE48)-AE49)*AE50 -> 
B52: Art 43º (50%) | C52: =C51/2 -> 8969 | D52: Art 43º (50%) | E52: =E51/2 -> 12703.5 | F52: Art 43º (50%) | G52: =G51/2 ->  | H52: Art 43º (50%) | I52: =I51/2 ->  | J52: Art 43º (50%) | K52: =K51/2 ->  | L52: Art 43º (50%) | M52: =M51/2 ->  | N52: Art 43º (50%) | O52: =O51/2 ->  | P52: Art 43º (50%) | Q52: =Q51/2 ->  | R52: Art 43º (50%) | S52: =S51/2 ->  | T52: Art 43º (50%) | U52: =U51/2 ->  | V52: Art 43º (50%) | W52: =W51/2 ->  | X52: Art 43º (50%) | Y52: =Y51/2 ->  | Z52: Art 43º (50%) | AA52: =AA51/2 ->  | AB52: Art 43º (50%) | AC52: =AC51/2 ->  | AD52: Art 43º (50%) | AE52: =AE51/2 -> 
B53: Dados pessoais | D53: Dados pessoais | F53: Dados pessoais | H53: Dados pessoais | J53: Dados pessoais | L53: Dados pessoais | N53: Dados pessoais | P53: Dados pessoais | R53: Dados pessoais | T53: Dados pessoais | V53: Dados pessoais | X53: Dados pessoais | Z53: Dados pessoais | AB53: Dados pessoais | AD53: Dados pessoais
B54: Rendimento anual coletável | C54: 35000 | D54: Rendimento anual coletável | E54: 30000 | F54: Rendimento anual coletável | H54: Rendimento anual coletável | J54: Rendimento anual coletável | L54: Rendimento anual coletável | N54: Rendimento anual coletável | P54: Rendimento anual coletável | R54: Rendimento anual coletável | T54: Rendimento anual coletável | V54: Rendimento anual coletável | X54: Rendimento anual coletável | Z54: Rendimento anual coletável | AB54: Rendimento anual coletável | AD54: Rendimento anual coletável
B55: Taxa de IRS | C55: =IFERROR( ( (C54 * INDEX('Tabelas IRS'!$C$2:$C$12, MATCH(C54, 'Tabelas IRS'!$A$2:$A$12, 1))) - INDEX('Tabelas IRS'!$D$2:$D$12, MATCH(C54, 'Tabelas IRS'!$A$2:$A$12, 1)) ) / C54, 0 ) -> 0.2400531429 | D55: Taxa de IRS | E55: =IFERROR( ( (E54 * INDEX('Tabelas IRS'!$C$2:$C$12, MATCH(E54, 'Tabelas IRS'!$A$2:$A$12, 1))) - INDEX('Tabelas IRS'!$D$2:$D$12, MATCH(E54, 'Tabelas IRS'!$A$2:$A$12, 1)) ) / E54, 0 ) -> 0.2208953333 | F55: Taxa de IRS | G55: =IFERROR( ( (G54 * INDEX('Tabelas IRS'!$C$2:$C$12, MATCH(G54, 'Tabelas IRS'!$A$2:$A$12, 1))) - INDEX('Tabelas IRS'!$D$2:$D$12, MATCH(G54, 'Tabelas IRS'!$A$2:$A$12, 1)) ) / G54, 0 ) -> 0 | H55: Taxa de IRS | I55: =IFERROR( ( (I54 * INDEX('Tabelas IRS'!$C$2:$C$12, MATCH(I54, 'Tabelas IRS'!$A$2:$A$12, 1))) - INDEX('Tabelas IRS'!$D$2:$D$12, MATCH(I54, 'Tabelas IRS'!$A$2:$A$12, 1)) ) / I54, 0 ) -> 0 | J55: Taxa de IRS | K55: =IFERROR( ( (K54 * INDEX('Tabelas IRS'!$C$2:$C$12, MATCH(K54, 'Tabelas IRS'!$A$2:$A$12, 1))) - INDEX('Tabelas IRS'!$D$2:$D$12, MATCH(K54, 'Tabelas IRS'!$A$2:$A$12, 1)) ) / K54, 0 ) -> 0 | L55: Taxa de IRS | M55: =IFERROR( ( (M54 * INDEX('Tabelas IRS'!$C$2:$C$12, MATCH(M54, 'Tabelas IRS'!$A$2:$A$12, 1))) - INDEX('Tabelas IRS'!$D$2:$D$12, MATCH(M54, 'Tabelas IRS'!$A$2:$A$12, 1)) ) / M54, 0 ) -> 0 | N55: Taxa de IRS | O55: =IFERROR( ( (O54 * INDEX('Tabelas IRS'!$C$2:$C$12, MATCH(O54, 'Tabelas IRS'!$A$2:$A$12, 1))) - INDEX('Tabelas IRS'!$D$2:$D$12, MATCH(O54, 'Tabelas IRS'!$A$2:$A$12, 1)) ) / O54, 0 ) -> 0 | P55: Taxa de IRS | Q55: =IFERROR( ( (Q54 * INDEX('Tabelas IRS'!$C$2:$C$12, MATCH(Q54, 'Tabelas IRS'!$A$2:$A$12, 1))) - INDEX('Tabelas IRS'!$D$2:$D$12, MATCH(Q54, 'Tabelas IRS'!$A$2:$A$12, 1)) ) / Q54, 0 ) -> 0 | R55: Taxa de IRS | S55: =IFERROR( ( (S54 * INDEX('Tabelas IRS'!$C$2:$C$12, MATCH(S54, 'Tabelas IRS'!$A$2:$A$12, 1))) - INDEX('Tabelas IRS'!$D$2:$D$12, MATCH(S54, 'Tabelas IRS'!$A$2:$A$12, 1)) ) / S54, 0 ) -> 0 | T55: Taxa de IRS | U55: =IFERROR( ( (U54 * INDEX('Tabelas IRS'!$C$2:$C$12, MATCH(U54, 'Tabelas IRS'!$A$2:$A$12, 1))) - INDEX('Tabelas IRS'!$D$2:$D$12, MATCH(U54, 'Tabelas IRS'!$A$2:$A$12, 1)) ) / U54, 0 ) -> 0 | V55: Taxa de IRS | W55: =IFERROR( ( (W54 * INDEX('Tabelas IRS'!$C$2:$C$12, MATCH(W54, 'Tabelas IRS'!$A$2:$A$12, 1))) - INDEX('Tabelas IRS'!$D$2:$D$12, MATCH(W54, 'Tabelas IRS'!$A$2:$A$12, 1)) ) / W54, 0 ) -> 0 | X55: Taxa de IRS | Y55: =IFERROR( ( (Y54 * INDEX('Tabelas IRS'!$C$2:$C$12, MATCH(Y54, 'Tabelas IRS'!$A$2:$A$12, 1))) - INDEX('Tabelas IRS'!$D$2:$D$12, MATCH(Y54, 'Tabelas IRS'!$A$2:$A$12, 1)) ) / Y54, 0 ) -> 0 | Z55: Taxa de IRS | AA55: =IFERROR( ( (AA54 * INDEX('Tabelas IRS'!$C$2:$C$12, MATCH(AA54, 'Tabelas IRS'!$A$2:$A$12, 1))) - INDEX('Tabelas IRS'!$D$2:$D$12, MATCH(AA54, 'Tabelas IRS'!$A$2:$A$12, 1)) ) / AA54, 0 ) -> 0 | AB55: Taxa de IRS | AC55: =IFERROR( ( (AC54 * INDEX('Tabelas IRS'!$C$2:$C$12, MATCH(AC54, 'Tabelas IRS'!$A$2:$A$12, 1))) - INDEX('Tabelas IRS'!$D$2:$D$12, MATCH(AC54, 'Tabelas IRS'!$A$2:$A$12, 1)) ) / AC54, 0 ) -> 0 | AD55: Taxa de IRS | AE55: =IFERROR( ( (AE54 * INDEX('Tabelas IRS'!$C$2:$C$12, MATCH(AE54, 'Tabelas IRS'!$A$2:$A$12, 1))) - INDEX('Tabelas IRS'!$D$2:$D$12, MATCH(AE54, 'Tabelas IRS'!$A$2:$A$12, 1)) ) / AE54, 0 ) -> 0
B56: Rendimento anual com mais-valia | C56: =C54+C52 -> 43969 | D56: Rendimento anual com mais-valia | E56: =E54+E52 -> 42703.5 | F56: Rendimento anual com mais-valia | G56: =G54+G52 ->  | H56: Rendimento anual com mais-valia | I56: =I54+I52 ->  | J56: Rendimento anual com mais-valia | K56: =K54+K52 ->  | L56: Rendimento anual com mais-valia | M56: =M54+M52 ->  | N56: Rendimento anual com mais-valia | O56: =O54+O52 ->  | P56: Rendimento anual com mais-valia | Q56: =Q54+Q52 ->  | R56: Rendimento anual com mais-valia | S56: =S54+S52 ->  | T56: Rendimento anual com mais-valia | U56: =U54+U52 ->  | V56: Rendimento anual com mais-valia | W56: =W54+W52 ->  | X56: Rendimento anual com mais-valia | Y56: =Y54+Y52 ->  | Z56: Rendimento anual com mais-valia | AA56: =AA54+AA52 ->  | AB56: Rendimento anual com mais-valia | AC56: =AC54+AC52 ->  | AD56: Rendimento anual com mais-valia | AE56: =AE54+AE52 -> 
B57: Taxa de IRS | C57: =IFERROR( ( (C56 * INDEX('Tabelas IRS'!$C$2:$C$12, MATCH(C56, 'Tabelas IRS'!$A$2:$A$12, 1))) - INDEX('Tabelas IRS'!$D$2:$D$12, MATCH(C56, 'Tabelas IRS'!$A$2:$A$12, 1)) ) / C56, 0 ) -> 0.2677512566 | D57: Taxa de IRS | E57: =IFERROR( ( (E56 * INDEX('Tabelas IRS'!$C$2:$C$12, MATCH(E56, 'Tabelas IRS'!$A$2:$A$12, 1))) - INDEX('Tabelas IRS'!$D$2:$D$12, MATCH(E56, 'Tabelas IRS'!$A$2:$A$12, 1)) ) / E56, 0 ) -> 0.2627949114 | F57: Taxa de IRS | G57: =IFERROR( ( (G56 * INDEX('Tabelas IRS'!$C$2:$C$12, MATCH(G56, 'Tabelas IRS'!$A$2:$A$12, 1))) - INDEX('Tabelas IRS'!$D$2:$D$12, MATCH(G56, 'Tabelas IRS'!$A$2:$A$12, 1)) ) / G56, 0 ) -> 0 | H57: Taxa de IRS | I57: =IFERROR( ( (I56 * INDEX('Tabelas IRS'!$C$2:$C$12, MATCH(I56, 'Tabelas IRS'!$A$2:$A$12, 1))) - INDEX('Tabelas IRS'!$D$2:$D$12, MATCH(I56, 'Tabelas IRS'!$A$2:$A$12, 1)) ) / I56, 0 ) -> 0 | J57: Taxa de IRS | K57: =IFERROR( ( (K56 * INDEX('Tabelas IRS'!$C$2:$C$12, MATCH(K56, 'Tabelas IRS'!$A$2:$A$12, 1))) - INDEX('Tabelas IRS'!$D$2:$D$12, MATCH(K56, 'Tabelas IRS'!$A$2:$A$12, 1)) ) / K56, 0 ) -> 0 | L57: Taxa de IRS | M57: =IFERROR( ( (M56 * INDEX('Tabelas IRS'!$C$2:$C$12, MATCH(M56, 'Tabelas IRS'!$A$2:$A$12, 1))) - INDEX('Tabelas IRS'!$D$2:$D$12, MATCH(M56, 'Tabelas IRS'!$A$2:$A$12, 1)) ) / M56, 0 ) -> 0 | N57: Taxa de IRS | O57: =IFERROR( ( (O56 * INDEX('Tabelas IRS'!$C$2:$C$12, MATCH(O56, 'Tabelas IRS'!$A$2:$A$12, 1))) - INDEX('Tabelas IRS'!$D$2:$D$12, MATCH(O56, 'Tabelas IRS'!$A$2:$A$12, 1)) ) / O56, 0 ) -> 0 | P57: Taxa de IRS | Q57: =IFERROR( ( (Q56 * INDEX('Tabelas IRS'!$C$2:$C$12, MATCH(Q56, 'Tabelas IRS'!$A$2:$A$12, 1))) - INDEX('Tabelas IRS'!$D$2:$D$12, MATCH(Q56, 'Tabelas IRS'!$A$2:$A$12, 1)) ) / Q56, 0 ) -> 0 | R57: Taxa de IRS | S57: =IFERROR( ( (S56 * INDEX('Tabelas IRS'!$C$2:$C$12, MATCH(S56, 'Tabelas IRS'!$A$2:$A$12, 1))) - INDEX('Tabelas IRS'!$D$2:$D$12, MATCH(S56, 'Tabelas IRS'!$A$2:$A$12, 1)) ) / S56, 0 ) -> 0 | T57: Taxa de IRS | U57: =IFERROR( ( (U56 * INDEX('Tabelas IRS'!$C$2:$C$12, MATCH(U56, 'Tabelas IRS'!$A$2:$A$12, 1))) - INDEX('Tabelas IRS'!$D$2:$D$12, MATCH(U56, 'Tabelas IRS'!$A$2:$A$12, 1)) ) / U56, 0 ) -> 0 | V57: Taxa de IRS | W57: =IFERROR( ( (W56 * INDEX('Tabelas IRS'!$C$2:$C$12, MATCH(W56, 'Tabelas IRS'!$A$2:$A$12, 1))) - INDEX('Tabelas IRS'!$D$2:$D$12, MATCH(W56, 'Tabelas IRS'!$A$2:$A$12, 1)) ) / W56, 0 ) -> 0 | X57: Taxa de IRS | Y57: =IFERROR( ( (Y56 * INDEX('Tabelas IRS'!$C$2:$C$12, MATCH(Y56, 'Tabelas IRS'!$A$2:$A$12, 1))) - INDEX('Tabelas IRS'!$D$2:$D$12, MATCH(Y56, 'Tabelas IRS'!$A$2:$A$12, 1)) ) / Y56, 0 ) -> 0 | Z57: Taxa de IRS | AA57: =IFERROR( ( (AA56 * INDEX('Tabelas IRS'!$C$2:$C$12, MATCH(AA56, 'Tabelas IRS'!$A$2:$A$12, 1))) - INDEX('Tabelas IRS'!$D$2:$D$12, MATCH(AA56, 'Tabelas IRS'!$A$2:$A$12, 1)) ) / AA56, 0 ) -> 0 | AB57: Taxa de IRS | AC57: =IFERROR( ( (AC56 * INDEX('Tabelas IRS'!$C$2:$C$12, MATCH(AC56, 'Tabelas IRS'!$A$2:$A$12, 1))) - INDEX('Tabelas IRS'!$D$2:$D$12, MATCH(AC56, 'Tabelas IRS'!$A$2:$A$12, 1)) ) / AC56, 0 ) -> 0 | AD57: Taxa de IRS | AE57: =IFERROR( ( (AE56 * INDEX('Tabelas IRS'!$C$2:$C$12, MATCH(AE56, 'Tabelas IRS'!$A$2:$A$12, 1))) - INDEX('Tabelas IRS'!$D$2:$D$12, MATCH(AE56, 'Tabelas IRS'!$A$2:$A$12, 1)) ) / AE56, 0 ) -> 0
B58: Imposto da Mais-valia | C58: =C56*C57-INDEX('Tabelas IRS'!D4:D12,MATCH(C56,'Tabelas IRS'!B4:B12,1))-(C54*C55-INDEX('Tabelas IRS'!D4:D12,MATCH(C56,'Tabelas IRS'!B4:B12,1))) -> 3370.895 | D58: Imposto da Mais-valia | E58: =E56*E57-INDEX('Tabelas IRS'!$D$2:$D$12, MATCH(E32, 'Tabelas IRS'!$A$2:$A$12, 1))-(E54*E55-INDEX('Tabelas IRS'!$D$2:$D$12, MATCH(E32, 'Tabelas IRS'!$A$2:$A$12, 1))) -> 4595.4025 | F58: Imposto da Mais-valia | G58: =G56*G57-INDEX('Tabelas IRS'!$D$2:$D$12, MATCH(G32, 'Tabelas IRS'!$A$2:$A$12, 1))-(G54*G55-INDEX('Tabelas IRS'!$D$2:$D$12, MATCH(G32, 'Tabelas IRS'!$A$2:$A$12, 1))) ->  | H58: Imposto da Mais-valia | I58: =I56*I57-INDEX('Tabelas IRS'!$D$2:$D$12, MATCH(I32, 'Tabelas IRS'!$A$2:$A$12, 1))-(I54*I55-INDEX('Tabelas IRS'!$D$2:$D$12, MATCH(I32, 'Tabelas IRS'!$A$2:$A$12, 1))) ->  | J58: Imposto da Mais-valia | K58: =K56*K57-INDEX('Tabelas IRS'!$D$2:$D$12, MATCH(K32, 'Tabelas IRS'!$A$2:$A$12, 1))-(K54*K55-INDEX('Tabelas IRS'!$D$2:$D$12, MATCH(K32, 'Tabelas IRS'!$A$2:$A$12, 1))) ->  | L58: Imposto da Mais-valia | M58: =M56*M57-INDEX('Tabelas IRS'!$D$2:$D$12, MATCH(M32, 'Tabelas IRS'!$A$2:$A$12, 1))-(M54*M55-INDEX('Tabelas IRS'!$D$2:$D$12, MATCH(M32, 'Tabelas IRS'!$A$2:$A$12, 1))) ->  | N58: Imposto da Mais-valia | O58: =O56*O57-INDEX('Tabelas IRS'!$D$2:$D$12, MATCH(O32, 'Tabelas IRS'!$A$2:$A$12, 1))-(O54*O55-INDEX('Tabelas IRS'!$D$2:$D$12, MATCH(O32, 'Tabelas IRS'!$A$2:$A$12, 1))) ->  | P58: Imposto da Mais-valia | Q58: =Q56*Q57-INDEX('Tabelas IRS'!$D$2:$D$12, MATCH(Q32, 'Tabelas IRS'!$A$2:$A$12, 1))-(Q54*Q55-INDEX('Tabelas IRS'!$D$2:$D$12, MATCH(Q32, 'Tabelas IRS'!$A$2:$A$12, 1))) ->  | R58: Imposto da Mais-valia | S58: =S56*S57-INDEX('Tabelas IRS'!$D$2:$D$12, MATCH(S32, 'Tabelas IRS'!$A$2:$A$12, 1))-(S54*S55-INDEX('Tabelas IRS'!$D$2:$D$12, MATCH(S32, 'Tabelas IRS'!$A$2:$A$12, 1))) ->  | T58: Imposto da Mais-valia | U58: =U56*U57-INDEX('Tabelas IRS'!$D$2:$D$12, MATCH(U32, 'Tabelas IRS'!$A$2:$A$12, 1))-(U54*U55-INDEX('Tabelas IRS'!$D$2:$D$12, MATCH(U32, 'Tabelas IRS'!$A$2:$A$12, 1))) ->  | V58: Imposto da Mais-valia | W58: =W56*W57-INDEX('Tabelas IRS'!$D$2:$D$12, MATCH(W32, 'Tabelas IRS'!$A$2:$A$12, 1))-(W54*W55-INDEX('Tabelas IRS'!$D$2:$D$12, MATCH(W32, 'Tabelas IRS'!$A$2:$A$12, 1))) ->  | X58: Imposto da Mais-valia | Y58: =Y56*Y57-INDEX('Tabelas IRS'!$D$2:$D$12, MATCH(Y32, 'Tabelas IRS'!$A$2:$A$12, 1))-(Y54*Y55-INDEX('Tabelas IRS'!$D$2:$D$12, MATCH(Y32, 'Tabelas IRS'!$A$2:$A$12, 1))) ->  | Z58: Imposto da Mais-valia | AA58: =AA56*AA57-INDEX('Tabelas IRS'!$D$2:$D$12, MATCH(AA32, 'Tabelas IRS'!$A$2:$A$12, 1))-(AA54*AA55-INDEX('Tabelas IRS'!$D$2:$D$12, MATCH(AA32, 'Tabelas IRS'!$A$2:$A$12, 1))) ->  | AB58: Imposto da Mais-valia | AC58: =AC56*AC57-INDEX('Tabelas IRS'!$D$2:$D$12, MATCH(AC32, 'Tabelas IRS'!$A$2:$A$12, 1))-(AC54*AC55-INDEX('Tabelas IRS'!$D$2:$D$12, MATCH(AC32, 'Tabelas IRS'!$A$2:$A$12, 1))) ->  | AD58: Imposto da Mais-valia | AE58: =AE56*AE57-INDEX('Tabelas IRS'!$D$2:$D$12, MATCH(AE32, 'Tabelas IRS'!$A$2:$A$12, 1))-(AE54*AE55-INDEX('Tabelas IRS'!$D$2:$D$12, MATCH(AE32, 'Tabelas IRS'!$A$2:$A$12, 1))) -> 
B60: Nu-Proprietário 1 | D60: Nu-Proprietário 2 | F60: Nu-Proprietário 3 | H60: Nu-Proprietário 4 | J60: Nu-Proprietário 5 | L60: Nu-Proprietário 6 | N60: Nu-Proprietário 7 | P60: Nu-Proprietário 8 | R60: Nu-Proprietário 9 | T60: Nu-Proprietário 10 | V60: Nu-Proprietário 11 | X60: Nu-Proprietário 12 | Z60: Nu-Proprietário 13 | AB60: Nu-Proprietário 14 | AD60: Nu-Proprietário 15
B61: Nome | C61: André | D61: Nome | E61: Francisco | F61: Nome | H61: Nome | J61: Nome | L61: Nome | N61: Nome | P61: Nome | R61: Nome | T61: Nome | V61: Nome | X61: Nome | Z61: Nome | AB61: Nome | AD61: Nome
B62: Idade | C62: 28 | D62: Idade | E62: 33 | F62: Idade | H62: Idade | J62: Idade | L62: Idade | N62: Idade | P62: Idade | R62: Idade | T62: Idade | V62: Idade | X62: Idade | Z62: Idade | AB62: Idade | AD62: Idade
A63: =SUM(INDEX(63:63, _xlfn.SEQUENCE(C3, , 3, 2))) -> 1 | B63: Quota-parte do direito | C63: 0.5 | D63: Quota-parte do direito | E63: 0.5 | F63: Quota-parte do direito | H63: Quota-parte do direito | J63: Quota-parte do direito | L63: Quota-parte do direito | N63: Quota-parte do direito | P63: Quota-parte do direito | R63: Quota-parte do direito | T63: Quota-parte do direito | V63: Quota-parte do direito | X63: Quota-parte do direito | Z63: Quota-parte do direito | AB63: Quota-parte do direito | AD63: Quota-parte do direito
A64: =IF(A63<>100%, "As percentagens dos nu-proprietários não totalizam 100%, voltar a confirmar quotas de todos os proprietários", "") ->  | B64: Origem | C64: Herança direta | D64: Origem | E64: Herança direta | F64: Origem | H64: Origem | J64: Origem | L64: Origem | N64: Origem | P64: Origem | R64: Origem | T64: Origem | V64: Origem | X64: Origem | Z64: Origem | AB64: Origem | AD64: Origem
B65: =IF(C64="Herança direta", "Valor patrimonial", IF(C64="Herança de terceiro", "Valor do imóvel na doação", IF(C64="Aquisição", "Valor de aquisição", ""))) -> Valor patrimonial | C65: 19000 | D65: =IF(E64="Herança direta", "Valor patrimonial", IF(E64="Herança de terceiro", "Valor do imóvel na doação", IF(E64="Aquisição", "Valor de aquisição", ""))) -> Valor patrimonial | E65: 19000 | F65: =IF(G64="Herança direta", "Valor patrimonial", IF(G64="Herança de terceiro", "Valor do imóvel na doação", IF(G64="Aquisição", "Valor de aquisição", ""))) ->  | H65: =IF(I64="Herança direta", "Valor patrimonial", IF(I64="Herança de terceiro", "Valor do imóvel na doação", IF(I64="Aquisição", "Valor de aquisição", ""))) ->  | J65: =IF(K64="Herança direta", "Valor patrimonial", IF(K64="Herança de terceiro", "Valor do imóvel na doação", IF(K64="Aquisição", "Valor de aquisição", ""))) ->  | L65: =IF(M64="Herança direta", "Valor patrimonial", IF(M64="Herança de terceiro", "Valor do imóvel na doação", IF(M64="Aquisição", "Valor de aquisição", ""))) ->  | N65: =IF(O64="Herança direta", "Valor patrimonial", IF(O64="Herança de terceiro", "Valor do imóvel na doação", IF(O64="Aquisição", "Valor de aquisição", ""))) ->  | P65: =IF(Q64="Herança direta", "Valor patrimonial", IF(Q64="Herança de terceiro", "Valor do imóvel na doação", IF(Q64="Aquisição", "Valor de aquisição", ""))) ->  | R65: =IF(S64="Herança direta", "Valor patrimonial", IF(S64="Herança de terceiro", "Valor do imóvel na doação", IF(S64="Aquisição", "Valor de aquisição", ""))) ->  | T65: =IF(U64="Herança direta", "Valor patrimonial", IF(U64="Herança de terceiro", "Valor do imóvel na doação", IF(U64="Aquisição", "Valor de aquisição", ""))) ->  | V65: =IF(W64="Herança direta", "Valor patrimonial", IF(W64="Herança de terceiro", "Valor do imóvel na doação", IF(W64="Aquisição", "Valor de aquisição", ""))) ->  | X65: =IF(Y64="Herança direta", "Valor patrimonial", IF(Y64="Herança de terceiro", "Valor do imóvel na doação", IF(Y64="Aquisição", "Valor de aquisição", ""))) ->  | Z65: =IF(AA64="Herança direta", "Valor patrimonial", IF(AA64="Herança de terceiro", "Valor do imóvel na doação", IF(AA64="Aquisição", "Valor de aquisição", ""))) ->  | AB65: =IF(AC64="Herança direta", "Valor patrimonial", IF(AC64="Herança de terceiro", "Valor do imóvel na doação", IF(AC64="Aquisição", "Valor de aquisição", ""))) ->  | AD65: =IF(AE64="Herança direta", "Valor patrimonial", IF(AE64="Herança de terceiro", "Valor do imóvel na doação", IF(AE64="Aquisição", "Valor de aquisição", ""))) -> 
B66: Ano de aquisição | C66: 2013 | D66: Ano de aquisição | E66: 2013 | F66: Ano de aquisição | H66: Ano de aquisição | J66: Ano de aquisição | L66: Ano de aquisição | N66: Ano de aquisição | P66: Ano de aquisição | R66: Ano de aquisição | T66: Ano de aquisição | V66: Ano de aquisição | X66: Ano de aquisição | Z66: Ano de aquisição | AB66: Ano de aquisição | AD66: Ano de aquisição
B67: Obras nos últimos 12 anos | C67: 0 | D67: Obras nos últimos 12 anos | E67: 0 | F67: Obras nos últimos 12 anos | H67: Obras nos últimos 12 anos | J67: Obras nos últimos 12 anos | L67: Obras nos últimos 12 anos | N67: Obras nos últimos 12 anos | P67: Obras nos últimos 12 anos | R67: Obras nos últimos 12 anos | T67: Obras nos últimos 12 anos | V67: Obras nos últimos 12 anos | X67: Obras nos últimos 12 anos | Z67: Obras nos últimos 12 anos | AB67: Obras nos últimos 12 anos | AD67: Obras nos últimos 12 anos
B68: Impostos pagos na aquisição | C68: 100 | D68: Impostos pagos na aquisição | E68: 100 | F68: Impostos pagos na aquisição | H68: Impostos pagos na aquisição | J68: Impostos pagos na aquisição | L68: Impostos pagos na aquisição | N68: Impostos pagos na aquisição | P68: Impostos pagos na aquisição | R68: Impostos pagos na aquisição | T68: Impostos pagos na aquisição | V68: Impostos pagos na aquisição | X68: Impostos pagos na aquisição | Z68: Impostos pagos na aquisição | AB68: Impostos pagos na aquisição | AD68: Impostos pagos na aquisição
B69: Comissão imobiliária | C69: 2460 | D69: Comissão imobiliária | E69: 2460 | F69: Comissão imobiliária | H69: Comissão imobiliária | J69: Comissão imobiliária | L69: Comissão imobiliária | N69: Comissão imobiliária | P69: Comissão imobiliária | R69: Comissão imobiliária | T69: Comissão imobiliária | V69: Comissão imobiliária | X69: Comissão imobiliária | Z69: Comissão imobiliária | AB69: Comissão imobiliária | AD69: Comissão imobiliária
B70: Outros encargos dedutíveis | C70: 0 | D70: Outros encargos dedutíveis | E70: 0 | F70: Outros encargos dedutíveis | H70: Outros encargos dedutíveis | J70: Outros encargos dedutíveis | L70: Outros encargos dedutíveis | N70: Outros encargos dedutíveis | P70: Outros encargos dedutíveis | R70: Outros encargos dedutíveis | T70: Outros encargos dedutíveis | V70: Outros encargos dedutíveis | X70: Outros encargos dedutíveis | Z70: Outros encargos dedutíveis | AB70: Outros encargos dedutíveis | AD70: Outros encargos dedutíveis
B71: Cálculo da mais valia | D71: Cálculo da mais valia | F71: Cálculo da mais valia | H71: Cálculo da mais valia | J71: Cálculo da mais valia | L71: Cálculo da mais valia | N71: Cálculo da mais valia | P71: Cálculo da mais valia | R71: Cálculo da mais valia | T71: Cálculo da mais valia | V71: Cálculo da mais valia | X71: Cálculo da mais valia | Z71: Cálculo da mais valia | AB71: Cálculo da mais valia | AD71: Cálculo da mais valia
B72: Coeficiente de atualização | C72: =VLOOKUP(C66, 'Coeficiente de atualização'!B2:C154, 2, FALSE) -> 1.17 | D72: Coeficiente de atualização | E72: =VLOOKUP(E66, 'Coeficiente de atualização'!$B$2:$C$154, 2, FALSE) -> 1.17 | F72: Coeficiente de atualização | G72: =VLOOKUP(G66, 'Coeficiente de atualização'!$B$2:$C$154, 2, FALSE) ->  | H72: Coeficiente de atualização | I72: =VLOOKUP(I66, 'Coeficiente de atualização'!$B$2:$C$154, 2, FALSE) ->  | J72: Coeficiente de atualização | K72: =VLOOKUP(K66, 'Coeficiente de atualização'!$B$2:$C$154, 2, FALSE) ->  | L72: Coeficiente de atualização | M72: =VLOOKUP(M66, 'Coeficiente de atualização'!$B$2:$C$154, 2, FALSE) ->  | N72: Coeficiente de atualização | O72: =VLOOKUP(O66, 'Coeficiente de atualização'!$B$2:$C$154, 2, FALSE) ->  | P72: Coeficiente de atualização | Q72: =VLOOKUP(Q66, 'Coeficiente de atualização'!$B$2:$C$154, 2, FALSE) ->  | R72: Coeficiente de atualização | S72: =VLOOKUP(S66, 'Coeficiente de atualização'!$B$2:$C$154, 2, FALSE) ->  | T72: Coeficiente de atualização | U72: =VLOOKUP(U66, 'Coeficiente de atualização'!$B$2:$C$154, 2, FALSE) ->  | V72: Coeficiente de atualização | W72: =VLOOKUP(W66, 'Coeficiente de atualização'!$B$2:$C$154, 2, FALSE) ->  | X72: Coeficiente de atualização | Y72: =VLOOKUP(Y66, 'Coeficiente de atualização'!$B$2:$C$154, 2, FALSE) ->  | Z72: Coeficiente de atualização | AA72: =VLOOKUP(AA66, 'Coeficiente de atualização'!$B$2:$C$154, 2, FALSE) ->  | AB72: Coeficiente de atualização | AC72: =VLOOKUP(AC66, 'Coeficiente de atualização'!$B$2:$C$154, 2, FALSE) ->  | AD72: Coeficiente de atualização | AE72: =VLOOKUP(AE66, 'Coeficiente de atualização'!$B$2:$C$154, 2, FALSE) -> 
B73: Despesas e encargos | C73: =C68++C67+C69+C70 -> 2560 | D73: Despesas e encargos | E73: =E67+E68+E69+E70 -> 2560 | F73: Despesas e encargos | G73: =G67+G68+G69+G70 -> 0 | H73: Despesas e encargos | I73: =I67+I68+I69+I70 -> 0 | J73: Despesas e encargos | K73: =K67+K68+K69+K70 -> 0 | L73: Despesas e encargos | M73: =M67+M68+M69+M70 -> 0 | N73: Despesas e encargos | O73: =O67+O68+O69+O70 -> 0 | P73: Despesas e encargos | Q73: =Q67+Q68+Q69+Q70 -> 0 | R73: Despesas e encargos | S73: =S67+S68+S69+S70 -> 0 | T73: Despesas e encargos | U73: =U67+U68+U69+U70 -> 0 | V73: Despesas e encargos | W73: =W67+W68+W69+W70 -> 0 | X73: Despesas e encargos | Y73: =Y67+Y68+Y69+Y70 -> 0 | Z73: Despesas e encargos | AA73: =AA67+AA68+AA69+AA70 -> 0 | AB73: Despesas e encargos | AC73: =AC67+AC68+AC69+AC70 -> 0 | AD73: Despesas e encargos | AE73: =AE67+AE68+AE69+AE70 -> 0
A74: =1-A50 -> 0.5 | B74: Quota-parte da mais-valia | C74: =A74*C63 -> 0.25 | D74: Quota-parte da mais-valia | E74: =$A$74*$E$63 -> 0.25 | F74: Quota-parte da mais-valia | G74: =$A$74*$E$63 -> 0.25 | H74: Quota-parte da mais-valia | I74: =$A$74*$E$63 -> 0.25 | J74: Quota-parte da mais-valia | K74: =$A$74*$E$63 -> 0.25 | L74: Quota-parte da mais-valia | M74: =$A$74*$E$63 -> 0.25 | N74: Quota-parte da mais-valia | O74: =$A$74*$E$63 -> 0.25 | P74: Quota-parte da mais-valia | Q74: =$A$74*$E$63 -> 0.25 | R74: Quota-parte da mais-valia | S74: =$A$74*$E$63 -> 0.25 | T74: Quota-parte da mais-valia | U74: =$A$74*$E$63 -> 0.25 | V74: Quota-parte da mais-valia | W74: =$A$74*$E$63 -> 0.25 | X74: Quota-parte da mais-valia | Y74: =$A$74*$E$63 -> 0.25 | Z74: Quota-parte da mais-valia | AA74: =$A$74*$E$63 -> 0.25 | AB74: Quota-parte da mais-valia | AC74: =$A$74*$E$63 -> 0.25 | AD74: Quota-parte da mais-valia | AE74: =$A$74*$E$63 -> 0.25
B75: Mais-valia do nu-proprietário | C75: =(C8-(C65*C72)-C73)*C74 -> 38802.5 | D75: Mais-valia do nu-proprietário | E75: =($C$8-(E65*E72)-E73)*E74 -> 38802.5 | F75: Mais-valia do nu-proprietário | G75: =($C$8-(G65*G72)-G73)*G74 ->  | H75: Mais-valia do nu-proprietário | I75: =($C$8-(I65*I72)-I73)*I74 ->  | J75: Mais-valia do nu-proprietário | K75: =($C$8-(K65*K72)-K73)*K74 ->  | L75: Mais-valia do nu-proprietário | M75: =($C$8-(M65*M72)-M73)*M74 ->  | N75: Mais-valia do nu-proprietário | O75: =($C$8-(O65*O72)-O73)*O74 ->  | P75: Mais-valia do nu-proprietário | Q75: =($C$8-(Q65*Q72)-Q73)*Q74 ->  | R75: Mais-valia do nu-proprietário | S75: =($C$8-(S65*S72)-S73)*S74 ->  | T75: Mais-valia do nu-proprietário | U75: =($C$8-(U65*U72)-U73)*U74 ->  | V75: Mais-valia do nu-proprietário | W75: =($C$8-(W65*W72)-W73)*W74 ->  | X75: Mais-valia do nu-proprietário | Y75: =($C$8-(Y65*Y72)-Y73)*Y74 ->  | Z75: Mais-valia do nu-proprietário | AA75: =($C$8-(AA65*AA72)-AA73)*AA74 ->  | AB75: Mais-valia do nu-proprietário | AC75: =($C$8-(AC65*AC72)-AC73)*AC74 ->  | AD75: Mais-valia do nu-proprietário | AE75: =($C$8-(AE65*AE72)-AE73)*AE74 -> 
B76: Art 43º (50%) | C76: =C75/2 -> 19401.25 | D76: Art 43º (50%) | E76: =E75/2 -> 19401.25 | F76: Art 43º (50%) | G76: =G75/2 ->  | H76: Art 43º (50%) | I76: =I75/2 ->  | J76: Art 43º (50%) | K76: =K75/2 ->  | L76: Art 43º (50%) | M76: =M75/2 ->  | N76: Art 43º (50%) | O76: =O75/2 ->  | P76: Art 43º (50%) | Q76: =Q75/2 ->  | R76: Art 43º (50%) | S76: =S75/2 ->  | T76: Art 43º (50%) | U76: =U75/2 ->  | V76: Art 43º (50%) | W76: =W75/2 ->  | X76: Art 43º (50%) | Y76: =Y75/2 ->  | Z76: Art 43º (50%) | AA76: =AA75/2 ->  | AB76: Art 43º (50%) | AC76: =AC75/2 ->  | AD76: Art 43º (50%) | AE76: =AE75/2 -> 
B77: Dados pessoais | D77: Dados pessoais | F77: Dados pessoais | H77: Dados pessoais | J77: Dados pessoais | L77: Dados pessoais | N77: Dados pessoais | P77: Dados pessoais | R77: Dados pessoais | T77: Dados pessoais | V77: Dados pessoais | X77: Dados pessoais | Z77: Dados pessoais | AB77: Dados pessoais | AD77: Dados pessoais
B78: Rendimento anual coletável | C78: 20000 | D78: Rendimento anual coletável | E78: 15000 | F78: Rendimento anual coletável | G78: 15000 | H78: Rendimento anual coletável | I78: 15000 | J78: Rendimento anual coletável | K78: 15000 | L78: Rendimento anual coletável | M78: 15000 | N78: Rendimento anual coletável | O78: 15000 | P78: Rendimento anual coletável | Q78: 15000 | R78: Rendimento anual coletável | S78: 15000 | T78: Rendimento anual coletável | U78: 15000 | V78: Rendimento anual coletável | W78: 15000 | X78: Rendimento anual coletável | Y78: 15000 | Z78: Rendimento anual coletável | AA78: 15000 | AB78: Rendimento anual coletável | AC78: 15000 | AD78: Rendimento anual coletável | AE78: 15000
A79: =IF(A50+A74<>100%, "As percentagens dos usufrutuários e nu-proprietários não totalizam 100%, voltar a confirmar quotas de todos os proprietários", "") ->  | B79: Taxa de IRS | C79: =IFERROR( ( (C78 * INDEX('Tabelas IRS'!$C$2:$C$12, MATCH(C78, 'Tabelas IRS'!$A$2:$A$12, 1))) - INDEX('Tabelas IRS'!$D$2:$D$12, MATCH(C78, 'Tabelas IRS'!$A$2:$A$12, 1)) ) / C78, 0 ) -> 0.1766045 | D79: Taxa de IRS | E79: =IFERROR( ( (E78 * INDEX('Tabelas IRS'!$C$2:$C$12, MATCH(E78, 'Tabelas IRS'!$A$2:$A$12, 1))) - INDEX('Tabelas IRS'!$D$2:$D$12, MATCH(E78, 'Tabelas IRS'!$A$2:$A$12, 1)) ) / E78, 0 ) -> 0.156606 | F79: Taxa de IRS | G79: =IFERROR( ( (G78 * INDEX('Tabelas IRS'!$C$2:$C$12, MATCH(G78, 'Tabelas IRS'!$A$2:$A$12, 1))) - INDEX('Tabelas IRS'!$D$2:$D$12, MATCH(G78, 'Tabelas IRS'!$A$2:$A$12, 1)) ) / G78, 0 ) -> 0.156606 | H79: Taxa de IRS | I79: =IFERROR( ( (I78 * INDEX('Tabelas IRS'!$C$2:$C$12, MATCH(I78, 'Tabelas IRS'!$A$2:$A$12, 1))) - INDEX('Tabelas IRS'!$D$2:$D$12, MATCH(I78, 'Tabelas IRS'!$A$2:$A$12, 1)) ) / I78, 0 ) -> 0.156606 | J79: Taxa de IRS | K79: =IFERROR( ( (K78 * INDEX('Tabelas IRS'!$C$2:$C$12, MATCH(K78, 'Tabelas IRS'!$A$2:$A$12, 1))) - INDEX('Tabelas IRS'!$D$2:$D$12, MATCH(K78, 'Tabelas IRS'!$A$2:$A$12, 1)) ) / K78, 0 ) -> 0.156606 | L79: Taxa de IRS | M79: =IFERROR( ( (M78 * INDEX('Tabelas IRS'!$C$2:$C$12, MATCH(M78, 'Tabelas IRS'!$A$2:$A$12, 1))) - INDEX('Tabelas IRS'!$D$2:$D$12, MATCH(M78, 'Tabelas IRS'!$A$2:$A$12, 1)) ) / M78, 0 ) -> 0.156606 | N79: Taxa de IRS | O79: =IFERROR( ( (O78 * INDEX('Tabelas IRS'!$C$2:$C$12, MATCH(O78, 'Tabelas IRS'!$A$2:$A$12, 1))) - INDEX('Tabelas IRS'!$D$2:$D$12, MATCH(O78, 'Tabelas IRS'!$A$2:$A$12, 1)) ) / O78, 0 ) -> 0.156606 | P79: Taxa de IRS | Q79: =IFERROR( ( (Q78 * INDEX('Tabelas IRS'!$C$2:$C$12, MATCH(Q78, 'Tabelas IRS'!$A$2:$A$12, 1))) - INDEX('Tabelas IRS'!$D$2:$D$12, MATCH(Q78, 'Tabelas IRS'!$A$2:$A$12, 1)) ) / Q78, 0 ) -> 0.156606 | R79: Taxa de IRS | S79: =IFERROR( ( (S78 * INDEX('Tabelas IRS'!$C$2:$C$12, MATCH(S78, 'Tabelas IRS'!$A$2:$A$12, 1))) - INDEX('Tabelas IRS'!$D$2:$D$12, MATCH(S78, 'Tabelas IRS'!$A$2:$A$12, 1)) ) / S78, 0 ) -> 0.156606 | T79: Taxa de IRS | U79: =IFERROR( ( (U78 * INDEX('Tabelas IRS'!$C$2:$C$12, MATCH(U78, 'Tabelas IRS'!$A$2:$A$12, 1))) - INDEX('Tabelas IRS'!$D$2:$D$12, MATCH(U78, 'Tabelas IRS'!$A$2:$A$12, 1)) ) / U78, 0 ) -> 0.156606 | V79: Taxa de IRS | W79: =IFERROR( ( (W78 * INDEX('Tabelas IRS'!$C$2:$C$12, MATCH(W78, 'Tabelas IRS'!$A$2:$A$12, 1))) - INDEX('Tabelas IRS'!$D$2:$D$12, MATCH(W78, 'Tabelas IRS'!$A$2:$A$12, 1)) ) / W78, 0 ) -> 0.156606 | X79: Taxa de IRS | Y79: =IFERROR( ( (Y78 * INDEX('Tabelas IRS'!$C$2:$C$12, MATCH(Y78, 'Tabelas IRS'!$A$2:$A$12, 1))) - INDEX('Tabelas IRS'!$D$2:$D$12, MATCH(Y78, 'Tabelas IRS'!$A$2:$A$12, 1)) ) / Y78, 0 ) -> 0.156606 | Z79: Taxa de IRS | AA79: =IFERROR( ( (AA78 * INDEX('Tabelas IRS'!$C$2:$C$12, MATCH(AA78, 'Tabelas IRS'!$A$2:$A$12, 1))) - INDEX('Tabelas IRS'!$D$2:$D$12, MATCH(AA78, 'Tabelas IRS'!$A$2:$A$12, 1)) ) / AA78, 0 ) -> 0.156606 | AB79: Taxa de IRS | AC79: =IFERROR( ( (AC78 * INDEX('Tabelas IRS'!$C$2:$C$12, MATCH(AC78, 'Tabelas IRS'!$A$2:$A$12, 1))) - INDEX('Tabelas IRS'!$D$2:$D$12, MATCH(AC78, 'Tabelas IRS'!$A$2:$A$12, 1)) ) / AC78, 0 ) -> 0.156606 | AD79: Taxa de IRS | AE79: =IFERROR( ( (AE78 * INDEX('Tabelas IRS'!$C$2:$C$12, MATCH(AE78, 'Tabelas IRS'!$A$2:$A$12, 1))) - INDEX('Tabelas IRS'!$D$2:$D$12, MATCH(AE78, 'Tabelas IRS'!$A$2:$A$12, 1)) ) / AE78, 0 ) -> 0.156606
B80: Rendimento anual com mais-valia | C80: =C78+C76 -> 39401.25 | D80: Rendimento anual com mais-valia | E80: =E78+E76 -> 34401.25 | F80: Rendimento anual com mais-valia | G80: =G78+G76 ->  | H80: Rendimento anual com mais-valia | I80: =I78+I76 ->  | J80: Rendimento anual com mais-valia | K80: =K78+K76 ->  | L80: Rendimento anual com mais-valia | M80: =M78+M76 ->  | N80: Rendimento anual com mais-valia | O80: =O78+O76 ->  | P80: Rendimento anual com mais-valia | Q80: =Q78+Q76 ->  | R80: Rendimento anual com mais-valia | S80: =S78+S76 ->  | T80: Rendimento anual com mais-valia | U80: =U78+U76 ->  | V80: Rendimento anual com mais-valia | W80: =W78+W76 ->  | X80: Rendimento anual com mais-valia | Y80: =Y78+Y76 ->  | Z80: Rendimento anual com mais-valia | AA80: =AA78+AA76 ->  | AB80: Rendimento anual com mais-valia | AC80: =AC78+AC76 ->  | AD80: Rendimento anual com mais-valia | AE80: =AE78+AE76 -> 
B81: Taxa de IRS | C81: =IFERROR( ( (C80 * INDEX('Tabelas IRS'!$C$2:$C$12, MATCH(C80, 'Tabelas IRS'!$A$2:$A$12, 1))) - INDEX('Tabelas IRS'!$D$2:$D$12, MATCH(C80, 'Tabelas IRS'!$A$2:$A$12, 1)) ) / C80, 0 ) -> 0.2528930871 | D81: Taxa de IRS | E81: =IFERROR( ( (E80 * INDEX('Tabelas IRS'!$C$2:$C$12, MATCH(E80, 'Tabelas IRS'!$A$2:$A$12, 1))) - INDEX('Tabelas IRS'!$D$2:$D$12, MATCH(E80, 'Tabelas IRS'!$A$2:$A$12, 1)) ) / E80, 0 ) -> 0.2380525054 | F81: Taxa de IRS | G81: =IFERROR( ( (G80 * INDEX('Tabelas IRS'!$C$2:$C$12, MATCH(G80, 'Tabelas IRS'!$A$2:$A$12, 1))) - INDEX('Tabelas IRS'!$D$2:$D$12, MATCH(G80, 'Tabelas IRS'!$A$2:$A$12, 1)) ) / G80, 0 ) -> 0 | H81: Taxa de IRS | I81: =IFERROR( ( (I80 * INDEX('Tabelas IRS'!$C$2:$C$12, MATCH(I80, 'Tabelas IRS'!$A$2:$A$12, 1))) - INDEX('Tabelas IRS'!$D$2:$D$12, MATCH(I80, 'Tabelas IRS'!$A$2:$A$12, 1)) ) / I80, 0 ) -> 0 | J81: Taxa de IRS | K81: =IFERROR( ( (K80 * INDEX('Tabelas IRS'!$C$2:$C$12, MATCH(K80, 'Tabelas IRS'!$A$2:$A$12, 1))) - INDEX('Tabelas IRS'!$D$2:$D$12, MATCH(K80, 'Tabelas IRS'!$A$2:$A$12, 1)) ) / K80, 0 ) -> 0 | L81: Taxa de IRS | M81: =IFERROR( ( (M80 * INDEX('Tabelas IRS'!$C$2:$C$12, MATCH(M80, 'Tabelas IRS'!$A$2:$A$12, 1))) - INDEX('Tabelas IRS'!$D$2:$D$12, MATCH(M80, 'Tabelas IRS'!$A$2:$A$12, 1)) ) / M80, 0 ) -> 0 | N81: Taxa de IRS | O81: =IFERROR( ( (O80 * INDEX('Tabelas IRS'!$C$2:$C$12, MATCH(O80, 'Tabelas IRS'!$A$2:$A$12, 1))) - INDEX('Tabelas IRS'!$D$2:$D$12, MATCH(O80, 'Tabelas IRS'!$A$2:$A$12, 1)) ) / O80, 0 ) -> 0 | P81: Taxa de IRS | Q81: =IFERROR( ( (Q80 * INDEX('Tabelas IRS'!$C$2:$C$12, MATCH(Q80, 'Tabelas IRS'!$A$2:$A$12, 1))) - INDEX('Tabelas IRS'!$D$2:$D$12, MATCH(Q80, 'Tabelas IRS'!$A$2:$A$12, 1)) ) / Q80, 0 ) -> 0 | R81: Taxa de IRS | S81: =IFERROR( ( (S80 * INDEX('Tabelas IRS'!$C$2:$C$12, MATCH(S80, 'Tabelas IRS'!$A$2:$A$12, 1))) - INDEX('Tabelas IRS'!$D$2:$D$12, MATCH(S80, 'Tabelas IRS'!$A$2:$A$12, 1)) ) / S80, 0 ) -> 0 | T81: Taxa de IRS | U81: =IFERROR( ( (U80 * INDEX('Tabelas IRS'!$C$2:$C$12, MATCH(U80, 'Tabelas IRS'!$A$2:$A$12, 1))) - INDEX('Tabelas IRS'!$D$2:$D$12, MATCH(U80, 'Tabelas IRS'!$A$2:$A$12, 1)) ) / U80, 0 ) -> 0 | V81: Taxa de IRS | W81: =IFERROR( ( (W80 * INDEX('Tabelas IRS'!$C$2:$C$12, MATCH(W80, 'Tabelas IRS'!$A$2:$A$12, 1))) - INDEX('Tabelas IRS'!$D$2:$D$12, MATCH(W80, 'Tabelas IRS'!$A$2:$A$12, 1)) ) / W80, 0 ) -> 0 | X81: Taxa de IRS | Y81: =IFERROR( ( (Y80 * INDEX('Tabelas IRS'!$C$2:$C$12, MATCH(Y80, 'Tabelas IRS'!$A$2:$A$12, 1))) - INDEX('Tabelas IRS'!$D$2:$D$12, MATCH(Y80, 'Tabelas IRS'!$A$2:$A$12, 1)) ) / Y80, 0 ) -> 0 | Z81: Taxa de IRS | AA81: =IFERROR( ( (AA80 * INDEX('Tabelas IRS'!$C$2:$C$12, MATCH(AA80, 'Tabelas IRS'!$A$2:$A$12, 1))) - INDEX('Tabelas IRS'!$D$2:$D$12, MATCH(AA80, 'Tabelas IRS'!$A$2:$A$12, 1)) ) / AA80, 0 ) -> 0 | AB81: Taxa de IRS | AC81: =IFERROR( ( (AC80 * INDEX('Tabelas IRS'!$C$2:$C$12, MATCH(AC80, 'Tabelas IRS'!$A$2:$A$12, 1))) - INDEX('Tabelas IRS'!$D$2:$D$12, MATCH(AC80, 'Tabelas IRS'!$A$2:$A$12, 1)) ) / AC80, 0 ) -> 0 | AD81: Taxa de IRS | AE81: =IFERROR( ( (AE80 * INDEX('Tabelas IRS'!$C$2:$C$12, MATCH(AE80, 'Tabelas IRS'!$A$2:$A$12, 1))) - INDEX('Tabelas IRS'!$D$2:$D$12, MATCH(AE80, 'Tabelas IRS'!$A$2:$A$12, 1)) ) / AE80, 0 ) -> 0
B82: Imposto da Mais-valia | C82: =C80*C81-INDEX('Tabelas IRS'!D4:D12,MATCH(C80,'Tabelas IRS'!B4:B12,1))-(C78*C79-INDEX('Tabelas IRS'!D4:D12,MATCH(C80,'Tabelas IRS'!B4:B12,1))) -> 6432.21375 | D82: Imposto da Mais-valia | E82: =E80*E81-INDEX('Tabelas IRS'!$D$2:$D$12, MATCH(E32, 'Tabelas IRS'!$A$2:$A$12, 1))-(E78*E79-INDEX('Tabelas IRS'!$D$2:$D$12, MATCH(E32, 'Tabelas IRS'!$A$2:$A$12, 1))) -> 5840.21375 | F82: Imposto da Mais-valia | G82: =G80*G81-INDEX('Tabelas IRS'!$D$2:$D$12, MATCH(G32, 'Tabelas IRS'!$A$2:$A$12, 1))-(G78*G79-INDEX('Tabelas IRS'!$D$2:$D$12, MATCH(G32, 'Tabelas IRS'!$A$2:$A$12, 1))) ->  | H82: Imposto da Mais-valia | I82: =I80*I81-INDEX('Tabelas IRS'!$D$2:$D$12, MATCH(I32, 'Tabelas IRS'!$A$2:$A$12, 1))-(I78*I79-INDEX('Tabelas IRS'!$D$2:$D$12, MATCH(I32, 'Tabelas IRS'!$A$2:$A$12, 1))) ->  | J82: Imposto da Mais-valia | K82: =K80*K81-INDEX('Tabelas IRS'!$D$2:$D$12, MATCH(K32, 'Tabelas IRS'!$A$2:$A$12, 1))-(K78*K79-INDEX('Tabelas IRS'!$D$2:$D$12, MATCH(K32, 'Tabelas IRS'!$A$2:$A$12, 1))) ->  | L82: Imposto da Mais-valia | M82: =M80*M81-INDEX('Tabelas IRS'!$D$2:$D$12, MATCH(M32, 'Tabelas IRS'!$A$2:$A$12, 1))-(M78*M79-INDEX('Tabelas IRS'!$D$2:$D$12, MATCH(M32, 'Tabelas IRS'!$A$2:$A$12, 1))) ->  | N82: Imposto da Mais-valia | O82: =O80*O81-INDEX('Tabelas IRS'!$D$2:$D$12, MATCH(O32, 'Tabelas IRS'!$A$2:$A$12, 1))-(O78*O79-INDEX('Tabelas IRS'!$D$2:$D$12, MATCH(O32, 'Tabelas IRS'!$A$2:$A$12, 1))) ->  | P82: Imposto da Mais-valia | Q82: =Q80*Q81-INDEX('Tabelas IRS'!$D$2:$D$12, MATCH(Q32, 'Tabelas IRS'!$A$2:$A$12, 1))-(Q78*Q79-INDEX('Tabelas IRS'!$D$2:$D$12, MATCH(Q32, 'Tabelas IRS'!$A$2:$A$12, 1))) ->  | R82: Imposto da Mais-valia | S82: =S80*S81-INDEX('Tabelas IRS'!$D$2:$D$12, MATCH(S32, 'Tabelas IRS'!$A$2:$A$12, 1))-(S78*S79-INDEX('Tabelas IRS'!$D$2:$D$12, MATCH(S32, 'Tabelas IRS'!$A$2:$A$12, 1))) ->  | T82: Imposto da Mais-valia | U82: =U80*U81-INDEX('Tabelas IRS'!$D$2:$D$12, MATCH(U32, 'Tabelas IRS'!$A$2:$A$12, 1))-(U78*U79-INDEX('Tabelas IRS'!$D$2:$D$12, MATCH(U32, 'Tabelas IRS'!$A$2:$A$12, 1))) ->  | V82: Imposto da Mais-valia | W82: =W80*W81-INDEX('Tabelas IRS'!$D$2:$D$12, MATCH(W32, 'Tabelas IRS'!$A$2:$A$12, 1))-(W78*W79-INDEX('Tabelas IRS'!$D$2:$D$12, MATCH(W32, 'Tabelas IRS'!$A$2:$A$12, 1))) ->  | X82: Imposto da Mais-valia | Y82: =Y80*Y81-INDEX('Tabelas IRS'!$D$2:$D$12, MATCH(Y32, 'Tabelas IRS'!$A$2:$A$12, 1))-(Y78*Y79-INDEX('Tabelas IRS'!$D$2:$D$12, MATCH(Y32, 'Tabelas IRS'!$A$2:$A$12, 1))) ->  | Z82: Imposto da Mais-valia | AA82: =AA80*AA81-INDEX('Tabelas IRS'!$D$2:$D$12, MATCH(AA32, 'Tabelas IRS'!$A$2:$A$12, 1))-(AA78*AA79-INDEX('Tabelas IRS'!$D$2:$D$12, MATCH(AA32, 'Tabelas IRS'!$A$2:$A$12, 1))) ->  | AB82: Imposto da Mais-valia | AC82: =AC80*AC81-INDEX('Tabelas IRS'!$D$2:$D$12, MATCH(AC32, 'Tabelas IRS'!$A$2:$A$12, 1))-(AC78*AC79-INDEX('Tabelas IRS'!$D$2:$D$12, MATCH(AC32, 'Tabelas IRS'!$A$2:$A$12, 1))) ->  | AD82: Imposto da Mais-valia | AE82: =AE80*AE81-INDEX('Tabelas IRS'!$D$2:$D$12, MATCH(AE32, 'Tabelas IRS'!$A$2:$A$12, 1))-(AE78*AE79-INDEX('Tabelas IRS'!$D$2:$D$12, MATCH(AE32, 'Tabelas IRS'!$A$2:$A$12, 1))) -> 
B84: Direito de Superfície 1 | D84: Direito de Superfície 2 | F84: Direito de Superfície 3 | H84: Direito de Superfície 4 | J84: Direito de Superfície 5 | L84: Direito de Superfície 6 | N84: Direito de Superfície 7 | P84: Direito de Superfície 8 | R84: Direito de Superfície 9 | T84: Direito de Superfície 10 | V84: Direito de Superfície 11 | X84: Direito de Superfície 12 | Z84: Direito de Superfície 13 | AB84: Direito de Superfície 14 | AD84: Direito de Superfície 15
B85: Nome | C85: João | D85: Nome | E85: Maria | F85: Nome | H85: Nome | J85: Nome | L85: Nome | N85: Nome | P85: Nome | R85: Nome | T85: Nome | V85: Nome | X85: Nome | Z85: Nome | AB85: Nome | AD85: Nome
B86: Duração do direito de superfície | C86: 40 | D86: Duração do direito de superfície | E86: 40 | F86: Duração do direito de superfície | H86: Duração do direito de superfície | J86: Duração do direito de superfície | L86: Duração do direito de superfície | N86: Duração do direito de superfície | P86: Duração do direito de superfície | R86: Duração do direito de superfície | T86: Duração do direito de superfície | V86: Duração do direito de superfície | X86: Duração do direito de superfície | Z86: Duração do direito de superfície | AB86: Duração do direito de superfície | AD86: Duração do direito de superfície
A87: =SUM(INDEX(87:87, _xlfn.SEQUENCE(C3, , 3, 2))) -> 1 | B87: Quota-parte do direito | C87: 0.5 | D87: Quota-parte do direito | E87: 0.5 | F87: Quota-parte do direito | H87: Quota-parte do direito | J87: Quota-parte do direito | L87: Quota-parte do direito | N87: Quota-parte do direito | P87: Quota-parte do direito | R87: Quota-parte do direito | T87: Quota-parte do direito | V87: Quota-parte do direito | X87: Quota-parte do direito | Z87: Quota-parte do direito | AB87: Quota-parte do direito | AD87: Quota-parte do direito
A88: =IF(A87<>100%, "As percentagens não totalizam 100%, voltar a confirmar quotas de todos os proprietários", "") ->  | B88: Origem | C88: Herança de terceiro | D88: Origem | E88: Herança de terceiro | F88: Origem | H88: Origem | J88: Origem | L88: Origem | N88: Origem | P88: Origem | R88: Origem | T88: Origem | V88: Origem | X88: Origem | Z88: Origem | AB88: Origem | AD88: Origem
B89: =IF(C88="Herança direta", "Valor patrimonial", IF(C88="Herança de terceiro", "Valor do imóvel na doação", IF(C88="Aquisição", "Valor de aquisição", ""))) -> Valor do imóvel na doação | C89: 19000 | D89: =IF(E88="Herança direta", "Valor patrimonial", IF(E88="Herança de terceiro", "Valor do imóvel na doação", IF(E88="Aquisição", "Valor de aquisição", ""))) -> Valor do imóvel na doação | E89: 19000 | F89: =IF(G88="Herança direta", "Valor patrimonial", IF(G88="Herança de terceiro", "Valor do imóvel na doação", IF(G88="Aquisição", "Valor de aquisição", ""))) ->  | H89: =IF(I88="Herança direta", "Valor patrimonial", IF(I88="Herança de terceiro", "Valor do imóvel na doação", IF(I88="Aquisição", "Valor de aquisição", ""))) ->  | J89: =IF(K88="Herança direta", "Valor patrimonial", IF(K88="Herança de terceiro", "Valor do imóvel na doação", IF(K88="Aquisição", "Valor de aquisição", ""))) ->  | L89: =IF(M88="Herança direta", "Valor patrimonial", IF(M88="Herança de terceiro", "Valor do imóvel na doação", IF(M88="Aquisição", "Valor de aquisição", ""))) ->  | N89: =IF(O88="Herança direta", "Valor patrimonial", IF(O88="Herança de terceiro", "Valor do imóvel na doação", IF(O88="Aquisição", "Valor de aquisição", ""))) ->  | P89: =IF(Q88="Herança direta", "Valor patrimonial", IF(Q88="Herança de terceiro", "Valor do imóvel na doação", IF(Q88="Aquisição", "Valor de aquisição", ""))) ->  | R89: =IF(S88="Herança direta", "Valor patrimonial", IF(S88="Herança de terceiro", "Valor do imóvel na doação", IF(S88="Aquisição", "Valor de aquisição", ""))) ->  | T89: =IF(U88="Herança direta", "Valor patrimonial", IF(U88="Herança de terceiro", "Valor do imóvel na doação", IF(U88="Aquisição", "Valor de aquisição", ""))) ->  | V89: =IF(W88="Herança direta", "Valor patrimonial", IF(W88="Herança de terceiro", "Valor do imóvel na doação", IF(W88="Aquisição", "Valor de aquisição", ""))) ->  | X89: =IF(Y88="Herança direta", "Valor patrimonial", IF(Y88="Herança de terceiro", "Valor do imóvel na doação", IF(Y88="Aquisição", "Valor de aquisição", ""))) ->  | Z89: =IF(AA88="Herança direta", "Valor patrimonial", IF(AA88="Herança de terceiro", "Valor do imóvel na doação", IF(AA88="Aquisição", "Valor de aquisição", ""))) ->  | AB89: =IF(AC88="Herança direta", "Valor patrimonial", IF(AC88="Herança de terceiro", "Valor do imóvel na doação", IF(AC88="Aquisição", "Valor de aquisição", ""))) ->  | AD89: =IF(AE88="Herança direta", "Valor patrimonial", IF(AE88="Herança de terceiro", "Valor do imóvel na doação", IF(AE88="Aquisição", "Valor de aquisição", ""))) -> 
B90: Ano de aquisição | C90: 2013 | D90: Ano de aquisição | E90: 2013 | F90: Ano de aquisição | H90: Ano de aquisição | J90: Ano de aquisição | L90: Ano de aquisição | N90: Ano de aquisição | P90: Ano de aquisição | R90: Ano de aquisição | T90: Ano de aquisição | V90: Ano de aquisição | X90: Ano de aquisição | Z90: Ano de aquisição | AB90: Ano de aquisição | AD90: Ano de aquisição
B91: Obras nos últimos 12 anos | C91: 0 | D91: Obras nos últimos 12 anos | E91: 0 | F91: Obras nos últimos 12 anos | H91: Obras nos últimos 12 anos | J91: Obras nos últimos 12 anos | L91: Obras nos últimos 12 anos | N91: Obras nos últimos 12 anos | P91: Obras nos últimos 12 anos | R91: Obras nos últimos 12 anos | T91: Obras nos últimos 12 anos | V91: Obras nos últimos 12 anos | X91: Obras nos últimos 12 anos | Z91: Obras nos últimos 12 anos | AB91: Obras nos últimos 12 anos | AD91: Obras nos últimos 12 anos
B92: Impostos pagos na aquisição | C92: 100 | D92: Impostos pagos na aquisição | E92: 100 | F92: Impostos pagos na aquisição | H92: Impostos pagos na aquisição | J92: Impostos pagos na aquisição | L92: Impostos pagos na aquisição | N92: Impostos pagos na aquisição | P92: Impostos pagos na aquisição | R92: Impostos pagos na aquisição | T92: Impostos pagos na aquisição | V92: Impostos pagos na aquisição | X92: Impostos pagos na aquisição | Z92: Impostos pagos na aquisição | AB92: Impostos pagos na aquisição | AD92: Impostos pagos na aquisição
B93: Comissão imobiliária | C93: 2460 | D93: Comissão imobiliária | E93: 2460 | F93: Comissão imobiliária | H93: Comissão imobiliária | J93: Comissão imobiliária | L93: Comissão imobiliária | N93: Comissão imobiliária | P93: Comissão imobiliária | R93: Comissão imobiliária | T93: Comissão imobiliária | V93: Comissão imobiliária | X93: Comissão imobiliária | Z93: Comissão imobiliária | AB93: Comissão imobiliária | AD93: Comissão imobiliária
B94: Outros encargos dedutíveis | C94: 0 | D94: Outros encargos dedutíveis | E94: 0 | F94: Outros encargos dedutíveis | H94: Outros encargos dedutíveis | J94: Outros encargos dedutíveis | L94: Outros encargos dedutíveis | N94: Outros encargos dedutíveis | P94: Outros encargos dedutíveis | R94: Outros encargos dedutíveis | T94: Outros encargos dedutíveis | V94: Outros encargos dedutíveis | X94: Outros encargos dedutíveis | Z94: Outros encargos dedutíveis | AB94: Outros encargos dedutíveis | AD94: Outros encargos dedutíveis
B95: Cálculo da mais valia | D95: Cálculo da mais valia | F95: Cálculo da mais valia | H95: Cálculo da mais valia | J95: Cálculo da mais valia | L95: Cálculo da mais valia | N95: Cálculo da mais valia | P95: Cálculo da mais valia | R95: Cálculo da mais valia | T95: Cálculo da mais valia | V95: Cálculo da mais valia | X95: Cálculo da mais valia | Z95: Cálculo da mais valia | AB95: Cálculo da mais valia | AD95: Cálculo da mais valia
B96: Coeficiente de atualização | C96: =VLOOKUP(C90, 'Coeficiente de atualização'!B50:C202, 2, FALSE) -> 1.17 | D96: Coeficiente de atualização | E96: =VLOOKUP(E90, 'Coeficiente de atualização'!$B$50:$C$202, 2, FALSE) -> 1.17 | F96: Coeficiente de atualização | G96: =VLOOKUP(G90, 'Coeficiente de atualização'!$B$50:$C$202, 2, FALSE) ->  | H96: Coeficiente de atualização | I96: =VLOOKUP(I90, 'Coeficiente de atualização'!$B$50:$C$202, 2, FALSE) ->  | J96: Coeficiente de atualização | K96: =VLOOKUP(K90, 'Coeficiente de atualização'!$B$50:$C$202, 2, FALSE) ->  | L96: Coeficiente de atualização | M96: =VLOOKUP(M90, 'Coeficiente de atualização'!$B$50:$C$202, 2, FALSE) ->  | N96: Coeficiente de atualização | O96: =VLOOKUP(O90, 'Coeficiente de atualização'!$B$50:$C$202, 2, FALSE) ->  | P96: Coeficiente de atualização | Q96: =VLOOKUP(Q90, 'Coeficiente de atualização'!$B$50:$C$202, 2, FALSE) ->  | R96: Coeficiente de atualização | S96: =VLOOKUP(S90, 'Coeficiente de atualização'!$B$50:$C$202, 2, FALSE) ->  | T96: Coeficiente de atualização | U96: =VLOOKUP(U90, 'Coeficiente de atualização'!$B$50:$C$202, 2, FALSE) ->  | V96: Coeficiente de atualização | W96: =VLOOKUP(W90, 'Coeficiente de atualização'!$B$50:$C$202, 2, FALSE) ->  | X96: Coeficiente de atualização | Y96: =VLOOKUP(Y90, 'Coeficiente de atualização'!$B$50:$C$202, 2, FALSE) ->  | Z96: Coeficiente de atualização | AA96: =VLOOKUP(AA90, 'Coeficiente de atualização'!$B$50:$C$202, 2, FALSE) ->  | AB96: Coeficiente de atualização | AC96: =VLOOKUP(AC90, 'Coeficiente de atualização'!$B$50:$C$202, 2, FALSE) ->  | AD96: Coeficiente de atualização | AE96: =VLOOKUP(AE90, 'Coeficiente de atualização'!$B$50:$C$202, 2, FALSE) -> 
B97: Despesas e encargos | C97: =C92++C91+C93+C94 -> 2560 | D97: Despesas e encargos | E97: =E91+E92+E93+E94 -> 2560 | F97: Despesas e encargos | G97: =G91+G92+G93+G94 -> 0 | H97: Despesas e encargos | I97: =I91+I92+I93+I94 -> 0 | J97: Despesas e encargos | K97: =K91+K92+K93+K94 -> 0 | L97: Despesas e encargos | M97: =M91+M92+M93+M94 -> 0 | N97: Despesas e encargos | O97: =O91+O92+O93+O94 -> 0 | P97: Despesas e encargos | Q97: =Q91+Q92+Q93+Q94 -> 0 | R97: Despesas e encargos | S97: =S91+S92+S93+S94 -> 0 | T97: Despesas e encargos | U97: =U91+U92+U93+U94 -> 0 | V97: Despesas e encargos | W97: =W91+W92+W93+W94 -> 0 | X97: Despesas e encargos | Y97: =Y91+Y92+Y93+Y94 -> 0 | Z97: Despesas e encargos | AA97: =AA91+AA92+AA93+AA94 -> 0 | AB97: Despesas e encargos | AC97: =AC91+AC92+AC93+AC94 -> 0 | AD97: Despesas e encargos | AE97: =AE91+AE92+AE93+AE94 -> 0
A98: =C98+E98 -> 0.4 | B98: Quota-parte da mais-valia | C98: =(MIN(MAX(C86,0),100)/100)*C87 -> 0.2 | D98: Quota-parte da mais-valia | E98: =(MIN(MAX(E86,0),100)/100)*E87 -> 0.2 | F98: Quota-parte da mais-valia | G98: =(MIN(MAX(G86,0),100)/100)*G87 -> 0 | H98: Quota-parte da mais-valia | I98: =(MIN(MAX(I86,0),100)/100)*I87 -> 0 | J98: Quota-parte da mais-valia | K98: =(MIN(MAX(K86,0),100)/100)*K87 -> 0 | L98: Quota-parte da mais-valia | M98: =(MIN(MAX(M86,0),100)/100)*M87 -> 0 | N98: Quota-parte da mais-valia | O98: =(MIN(MAX(O86,0),100)/100)*O87 -> 0 | P98: Quota-parte da mais-valia | Q98: =(MIN(MAX(Q86,0),100)/100)*Q87 -> 0 | R98: Quota-parte da mais-valia | S98: =(MIN(MAX(S86,0),100)/100)*S87 -> 0 | T98: Quota-parte da mais-valia | U98: =(MIN(MAX(U86,0),100)/100)*U87 -> 0 | V98: Quota-parte da mais-valia | W98: =(MIN(MAX(W86,0),100)/100)*W87 -> 0 | X98: Quota-parte da mais-valia | Y98: =(MIN(MAX(Y86,0),100)/100)*Y87 -> 0 | Z98: Quota-parte da mais-valia | AA98: =(MIN(MAX(AA86,0),100)/100)*AA87 -> 0 | AB98: Quota-parte da mais-valia | AC98: =(MIN(MAX(AC86,0),100)/100)*AC87 -> 0 | AD98: Quota-parte da mais-valia | AE98: =(MIN(MAX(AE86,0),100)/100)*AE87 -> 0
B99: Mais-valia | C99: =(C8-(C89*C96)-C97)*C98 -> 31042 | D99: Mais-valia | E99: =($C$8-(E89*E96)-E97)*E98 -> 31042 | F99: Mais-valia | G99: =($C$8-(G89*G96)-G97)*G98 ->  | H99: Mais-valia | I99: =($C$8-(I89*I96)-I97)*I98 ->  | J99: Mais-valia | K99: =($C$8-(K89*K96)-K97)*K98 ->  | L99: Mais-valia | M99: =($C$8-(M89*M96)-M97)*M98 ->  | N99: Mais-valia | O99: =($C$8-(O89*O96)-O97)*O98 ->  | P99: Mais-valia | Q99: =($C$8-(Q89*Q96)-Q97)*Q98 ->  | R99: Mais-valia | S99: =($C$8-(S89*S96)-S97)*S98 ->  | T99: Mais-valia | U99: =($C$8-(U89*U96)-U97)*U98 ->  | V99: Mais-valia | W99: =($C$8-(W89*W96)-W97)*W98 ->  | X99: Mais-valia | Y99: =($C$8-(Y89*Y96)-Y97)*Y98 ->  | Z99: Mais-valia | AA99: =($C$8-(AA89*AA96)-AA97)*AA98 ->  | AB99: Mais-valia | AC99: =($C$8-(AC89*AC96)-AC97)*AC98 ->  | AD99: Mais-valia | AE99: =($C$8-(AE89*AE96)-AE97)*AE98 -> 
B100: Art 43º (50%) | C100: =C99/2 -> 15521 | D100: Art 43º (50%) | E100: =E99/2 -> 15521 | F100: Art 43º (50%) | G100: =G99/2 ->  | H100: Art 43º (50%) | I100: =I99/2 ->  | J100: Art 43º (50%) | K100: =K99/2 ->  | L100: Art 43º (50%) | M100: =M99/2 ->  | N100: Art 43º (50%) | O100: =O99/2 ->  | P100: Art 43º (50%) | Q100: =Q99/2 ->  | R100: Art 43º (50%) | S100: =S99/2 ->  | T100: Art 43º (50%) | U100: =U99/2 ->  | V100: Art 43º (50%) | W100: =W99/2 ->  | X100: Art 43º (50%) | Y100: =Y99/2 ->  | Z100: Art 43º (50%) | AA100: =AA99/2 ->  | AB100: Art 43º (50%) | AC100: =AC99/2 ->  | AD100: Art 43º (50%) | AE100: =AE99/2 -> 
B101: Dados pessoais | D101: Dados pessoais | F101: Dados pessoais | H101: Dados pessoais | J101: Dados pessoais | L101: Dados pessoais | N101: Dados pessoais | P101: Dados pessoais | R101: Dados pessoais | T101: Dados pessoais | V101: Dados pessoais | X101: Dados pessoais | Z101: Dados pessoais | AB101: Dados pessoais | AD101: Dados pessoais
B102: Rendimento anual coletável | C102: 30000 | D102: Rendimento anual coletável | E102: 30000 | F102: Rendimento anual coletável | H102: Rendimento anual coletável | J102: Rendimento anual coletável | L102: Rendimento anual coletável | N102: Rendimento anual coletável | P102: Rendimento anual coletável | R102: Rendimento anual coletável | T102: Rendimento anual coletável | V102: Rendimento anual coletável | X102: Rendimento anual coletável | Z102: Rendimento anual coletável | AB102: Rendimento anual coletável | AD102: Rendimento anual coletável
B103: Taxa de IRS | C103: =IFERROR( ( (C102 * INDEX('Tabelas IRS'!$C$2:$C$12, MATCH(C102, 'Tabelas IRS'!$A$2:$A$12, 1))) - INDEX('Tabelas IRS'!$D$2:$D$12, MATCH(C102, 'Tabelas IRS'!$A$2:$A$12, 1)) ) / C102, 0 ) -> 0.2208953333 | D103: Taxa de IRS | E103: =IFERROR( ( (E102 * INDEX('Tabelas IRS'!$C$2:$C$12, MATCH(E102, 'Tabelas IRS'!$A$2:$A$12, 1))) - INDEX('Tabelas IRS'!$D$2:$D$12, MATCH(E102, 'Tabelas IRS'!$A$2:$A$12, 1)) ) / E102, 0 ) -> 0.2208953333 | F103: Taxa de IRS | G103: =IFERROR( ( (G102 * INDEX('Tabelas IRS'!$C$2:$C$12, MATCH(G102, 'Tabelas IRS'!$A$2:$A$12, 1))) - INDEX('Tabelas IRS'!$D$2:$D$12, MATCH(G102, 'Tabelas IRS'!$A$2:$A$12, 1)) ) / G102, 0 ) -> 0 | H103: Taxa de IRS | I103: =IFERROR( ( (I102 * INDEX('Tabelas IRS'!$C$2:$C$12, MATCH(I102, 'Tabelas IRS'!$A$2:$A$12, 1))) - INDEX('Tabelas IRS'!$D$2:$D$12, MATCH(I102, 'Tabelas IRS'!$A$2:$A$12, 1)) ) / I102, 0 ) -> 0 | J103: Taxa de IRS | K103: =IFERROR( ( (K102 * INDEX('Tabelas IRS'!$C$2:$C$12, MATCH(K102, 'Tabelas IRS'!$A$2:$A$12, 1))) - INDEX('Tabelas IRS'!$D$2:$D$12, MATCH(K102, 'Tabelas IRS'!$A$2:$A$12, 1)) ) / K102, 0 ) -> 0 | L103: Taxa de IRS | M103: =IFERROR( ( (M102 * INDEX('Tabelas IRS'!$C$2:$C$12, MATCH(M102, 'Tabelas IRS'!$A$2:$A$12, 1))) - INDEX('Tabelas IRS'!$D$2:$D$12, MATCH(M102, 'Tabelas IRS'!$A$2:$A$12, 1)) ) / M102, 0 ) -> 0 | N103: Taxa de IRS | O103: =IFERROR( ( (O102 * INDEX('Tabelas IRS'!$C$2:$C$12, MATCH(O102, 'Tabelas IRS'!$A$2:$A$12, 1))) - INDEX('Tabelas IRS'!$D$2:$D$12, MATCH(O102, 'Tabelas IRS'!$A$2:$A$12, 1)) ) / O102, 0 ) -> 0 | P103: Taxa de IRS | Q103: =IFERROR( ( (Q102 * INDEX('Tabelas IRS'!$C$2:$C$12, MATCH(Q102, 'Tabelas IRS'!$A$2:$A$12, 1))) - INDEX('Tabelas IRS'!$D$2:$D$12, MATCH(Q102, 'Tabelas IRS'!$A$2:$A$12, 1)) ) / Q102, 0 ) -> 0 | R103: Taxa de IRS | S103: =IFERROR( ( (S102 * INDEX('Tabelas IRS'!$C$2:$C$12, MATCH(S102, 'Tabelas IRS'!$A$2:$A$12, 1))) - INDEX('Tabelas IRS'!$D$2:$D$12, MATCH(S102, 'Tabelas IRS'!$A$2:$A$12, 1)) ) / S102, 0 ) -> 0 | T103: Taxa de IRS | U103: =IFERROR( ( (U102 * INDEX('Tabelas IRS'!$C$2:$C$12, MATCH(U102, 'Tabelas IRS'!$A$2:$A$12, 1))) - INDEX('Tabelas IRS'!$D$2:$D$12, MATCH(U102, 'Tabelas IRS'!$A$2:$A$12, 1)) ) / U102, 0 ) -> 0 | V103: Taxa de IRS | W103: =IFERROR( ( (W102 * INDEX('Tabelas IRS'!$C$2:$C$12, MATCH(W102, 'Tabelas IRS'!$A$2:$A$12, 1))) - INDEX('Tabelas IRS'!$D$2:$D$12, MATCH(W102, 'Tabelas IRS'!$A$2:$A$12, 1)) ) / W102, 0 ) -> 0 | X103: Taxa de IRS | Y103: =IFERROR( ( (Y102 * INDEX('Tabelas IRS'!$C$2:$C$12, MATCH(Y102, 'Tabelas IRS'!$A$2:$A$12, 1))) - INDEX('Tabelas IRS'!$D$2:$D$12, MATCH(Y102, 'Tabelas IRS'!$A$2:$A$12, 1)) ) / Y102, 0 ) -> 0 | Z103: Taxa de IRS | AA103: =IFERROR( ( (AA102 * INDEX('Tabelas IRS'!$C$2:$C$12, MATCH(AA102, 'Tabelas IRS'!$A$2:$A$12, 1))) - INDEX('Tabelas IRS'!$D$2:$D$12, MATCH(AA102, 'Tabelas IRS'!$A$2:$A$12, 1)) ) / AA102, 0 ) -> 0 | AB103: Taxa de IRS | AC103: =IFERROR( ( (AC102 * INDEX('Tabelas IRS'!$C$2:$C$12, MATCH(AC102, 'Tabelas IRS'!$A$2:$A$12, 1))) - INDEX('Tabelas IRS'!$D$2:$D$12, MATCH(AC102, 'Tabelas IRS'!$A$2:$A$12, 1)) ) / AC102, 0 ) -> 0 | AD103: Taxa de IRS | AE103: =IFERROR( ( (AE102 * INDEX('Tabelas IRS'!$C$2:$C$12, MATCH(AE102, 'Tabelas IRS'!$A$2:$A$12, 1))) - INDEX('Tabelas IRS'!$D$2:$D$12, MATCH(AE102, 'Tabelas IRS'!$A$2:$A$12, 1)) ) / AE102, 0 ) -> 0
B104: Rendimento anual com mais-valia | C104: =C102+C100 -> 45521 | D104: Rendimento anual com mais-valia | E104: =E102+E100 -> 45521 | F104: Rendimento anual com mais-valia | G104: =G102+G100 ->  | H104: Rendimento anual com mais-valia | I104: =I102+I100 ->  | J104: Rendimento anual com mais-valia | K104: =K102+K100 ->  | L104: Rendimento anual com mais-valia | M104: =M102+M100 ->  | N104: Rendimento anual com mais-valia | O104: =O102+O100 ->  | P104: Rendimento anual com mais-valia | Q104: =Q102+Q100 ->  | R104: Rendimento anual com mais-valia | S104: =S102+S100 ->  | T104: Rendimento anual com mais-valia | U104: =U102+U100 ->  | V104: Rendimento anual com mais-valia | W104: =W102+W100 ->  | X104: Rendimento anual com mais-valia | Y104: =Y102+Y100 ->  | Z104: Rendimento anual com mais-valia | AA104: =AA102+AA100 ->  | AB104: Rendimento anual com mais-valia | AC104: =AC102+AC100 ->  | AD104: Rendimento anual com mais-valia | AE104: =AE102+AE100 -> 
B105: Taxa de IRS | C105: =IFERROR( ( (C104 * INDEX('Tabelas IRS'!$C$2:$C$12, MATCH(C104, 'Tabelas IRS'!$A$2:$A$12, 1))) - INDEX('Tabelas IRS'!$D$2:$D$12, MATCH(C104, 'Tabelas IRS'!$A$2:$A$12, 1)) ) / C104, 0 ) -> 0.2736334878 | D105: Taxa de IRS | E105: =IFERROR( ( (E104 * INDEX('Tabelas IRS'!$C$2:$C$12, MATCH(E104, 'Tabelas IRS'!$A$2:$A$12, 1))) - INDEX('Tabelas IRS'!$D$2:$D$12, MATCH(E104, 'Tabelas IRS'!$A$2:$A$12, 1)) ) / E104, 0 ) -> 0.2736334878 | F105: Taxa de IRS | G105: =IFERROR( ( (G104 * INDEX('Tabelas IRS'!$C$2:$C$12, MATCH(G104, 'Tabelas IRS'!$A$2:$A$12, 1))) - INDEX('Tabelas IRS'!$D$2:$D$12, MATCH(G104, 'Tabelas IRS'!$A$2:$A$12, 1)) ) / G104, 0 ) -> 0 | H105: Taxa de IRS | I105: =IFERROR( ( (I104 * INDEX('Tabelas IRS'!$C$2:$C$12, MATCH(I104, 'Tabelas IRS'!$A$2:$A$12, 1))) - INDEX('Tabelas IRS'!$D$2:$D$12, MATCH(I104, 'Tabelas IRS'!$A$2:$A$12, 1)) ) / I104, 0 ) -> 0 | J105: Taxa de IRS | K105: =IFERROR( ( (K104 * INDEX('Tabelas IRS'!$C$2:$C$12, MATCH(K104, 'Tabelas IRS'!$A$2:$A$12, 1))) - INDEX('Tabelas IRS'!$D$2:$D$12, MATCH(K104, 'Tabelas IRS'!$A$2:$A$12, 1)) ) / K104, 0 ) -> 0 | L105: Taxa de IRS | M105: =IFERROR( ( (M104 * INDEX('Tabelas IRS'!$C$2:$C$12, MATCH(M104, 'Tabelas IRS'!$A$2:$A$12, 1))) - INDEX('Tabelas IRS'!$D$2:$D$12, MATCH(M104, 'Tabelas IRS'!$A$2:$A$12, 1)) ) / M104, 0 ) -> 0 | N105: Taxa de IRS | O105: =IFERROR( ( (O104 * INDEX('Tabelas IRS'!$C$2:$C$12, MATCH(O104, 'Tabelas IRS'!$A$2:$A$12, 1))) - INDEX('Tabelas IRS'!$D$2:$D$12, MATCH(O104, 'Tabelas IRS'!$A$2:$A$12, 1)) ) / O104, 0 ) -> 0 | P105: Taxa de IRS | Q105: =IFERROR( ( (Q104 * INDEX('Tabelas IRS'!$C$2:$C$12, MATCH(Q104, 'Tabelas IRS'!$A$2:$A$12, 1))) - INDEX('Tabelas IRS'!$D$2:$D$12, MATCH(Q104, 'Tabelas IRS'!$A$2:$A$12, 1)) ) / Q104, 0 ) -> 0 | R105: Taxa de IRS | S105: =IFERROR( ( (S104 * INDEX('Tabelas IRS'!$C$2:$C$12, MATCH(S104, 'Tabelas IRS'!$A$2:$A$12, 1))) - INDEX('Tabelas IRS'!$D$2:$D$12, MATCH(S104, 'Tabelas IRS'!$A$2:$A$12, 1)) ) / S104, 0 ) -> 0 | T105: Taxa de IRS | U105: =IFERROR( ( (U104 * INDEX('Tabelas IRS'!$C$2:$C$12, MATCH(U104, 'Tabelas IRS'!$A$2:$A$12, 1))) - INDEX('Tabelas IRS'!$D$2:$D$12, MATCH(U104, 'Tabelas IRS'!$A$2:$A$12, 1)) ) / U104, 0 ) -> 0 | V105: Taxa de IRS | W105: =IFERROR( ( (W104 * INDEX('Tabelas IRS'!$C$2:$C$12, MATCH(W104, 'Tabelas IRS'!$A$2:$A$12, 1))) - INDEX('Tabelas IRS'!$D$2:$D$12, MATCH(W104, 'Tabelas IRS'!$A$2:$A$12, 1)) ) / W104, 0 ) -> 0 | X105: Taxa de IRS | Y105: =IFERROR( ( (Y104 * INDEX('Tabelas IRS'!$C$2:$C$12, MATCH(Y104, 'Tabelas IRS'!$A$2:$A$12, 1))) - INDEX('Tabelas IRS'!$D$2:$D$12, MATCH(Y104, 'Tabelas IRS'!$A$2:$A$12, 1)) ) / Y104, 0 ) -> 0 | Z105: Taxa de IRS | AA105: =IFERROR( ( (AA104 * INDEX('Tabelas IRS'!$C$2:$C$12, MATCH(AA104, 'Tabelas IRS'!$A$2:$A$12, 1))) - INDEX('Tabelas IRS'!$D$2:$D$12, MATCH(AA104, 'Tabelas IRS'!$A$2:$A$12, 1)) ) / AA104, 0 ) -> 0 | AB105: Taxa de IRS | AC105: =IFERROR( ( (AC104 * INDEX('Tabelas IRS'!$C$2:$C$12, MATCH(AC104, 'Tabelas IRS'!$A$2:$A$12, 1))) - INDEX('Tabelas IRS'!$D$2:$D$12, MATCH(AC104, 'Tabelas IRS'!$A$2:$A$12, 1)) ) / AC104, 0 ) -> 0 | AD105: Taxa de IRS | AE105: =IFERROR( ( (AE104 * INDEX('Tabelas IRS'!$C$2:$C$12, MATCH(AE104, 'Tabelas IRS'!$A$2:$A$12, 1))) - INDEX('Tabelas IRS'!$D$2:$D$12, MATCH(AE104, 'Tabelas IRS'!$A$2:$A$12, 1)) ) / AE104, 0 ) -> 0
B106: Imposto da Mais-valia | C106: =C104*C105-INDEX('Tabelas IRS'!D4:D12,MATCH(C104,'Tabelas IRS'!B4:B12,1))-(C102*C103-INDEX('Tabelas IRS'!D4:D12,MATCH(C104,'Tabelas IRS'!B4:B12,1))) -> 5829.21 | D106: Imposto da Mais-valia | E106: =E104*E105-INDEX('Tabelas IRS'!$D$2:$D$12, MATCH(E32, 'Tabelas IRS'!$A$2:$A$12, 1))-(E102*E103-INDEX('Tabelas IRS'!$D$2:$D$12, MATCH(E32, 'Tabelas IRS'!$A$2:$A$12, 1))) -> 5829.21 | F106: Imposto da Mais-valia | G106: =G104*G105-INDEX('Tabelas IRS'!$D$2:$D$12, MATCH(G32, 'Tabelas IRS'!$A$2:$A$12, 1))-(G102*G103-INDEX('Tabelas IRS'!$D$2:$D$12, MATCH(G32, 'Tabelas IRS'!$A$2:$A$12, 1))) ->  | H106: Imposto da Mais-valia | I106: =I104*I105-INDEX('Tabelas IRS'!$D$2:$D$12, MATCH(I32, 'Tabelas IRS'!$A$2:$A$12, 1))-(I102*I103-INDEX('Tabelas IRS'!$D$2:$D$12, MATCH(I32, 'Tabelas IRS'!$A$2:$A$12, 1))) ->  | J106: Imposto da Mais-valia | K106: =K104*K105-INDEX('Tabelas IRS'!$D$2:$D$12, MATCH(K32, 'Tabelas IRS'!$A$2:$A$12, 1))-(K102*K103-INDEX('Tabelas IRS'!$D$2:$D$12, MATCH(K32, 'Tabelas IRS'!$A$2:$A$12, 1))) ->  | L106: Imposto da Mais-valia | M106: =M104*M105-INDEX('Tabelas IRS'!$D$2:$D$12, MATCH(M32, 'Tabelas IRS'!$A$2:$A$12, 1))-(M102*M103-INDEX('Tabelas IRS'!$D$2:$D$12, MATCH(M32, 'Tabelas IRS'!$A$2:$A$12, 1))) ->  | N106: Imposto da Mais-valia | O106: =O104*O105-INDEX('Tabelas IRS'!$D$2:$D$12, MATCH(O32, 'Tabelas IRS'!$A$2:$A$12, 1))-(O102*O103-INDEX('Tabelas IRS'!$D$2:$D$12, MATCH(O32, 'Tabelas IRS'!$A$2:$A$12, 1))) ->  | P106: Imposto da Mais-valia | Q106: =Q104*Q105-INDEX('Tabelas IRS'!$D$2:$D$12, MATCH(Q32, 'Tabelas IRS'!$A$2:$A$12, 1))-(Q102*Q103-INDEX('Tabelas IRS'!$D$2:$D$12, MATCH(Q32, 'Tabelas IRS'!$A$2:$A$12, 1))) ->  | R106: Imposto da Mais-valia | S106: =S104*S105-INDEX('Tabelas IRS'!$D$2:$D$12, MATCH(S32, 'Tabelas IRS'!$A$2:$A$12, 1))-(S102*S103-INDEX('Tabelas IRS'!$D$2:$D$12, MATCH(S32, 'Tabelas IRS'!$A$2:$A$12, 1))) ->  | T106: Imposto da Mais-valia | U106: =U104*U105-INDEX('Tabelas IRS'!$D$2:$D$12, MATCH(U32, 'Tabelas IRS'!$A$2:$A$12, 1))-(U102*U103-INDEX('Tabelas IRS'!$D$2:$D$12, MATCH(U32, 'Tabelas IRS'!$A$2:$A$12, 1))) ->  | V106: Imposto da Mais-valia | W106: =W104*W105-INDEX('Tabelas IRS'!$D$2:$D$12, MATCH(W32, 'Tabelas IRS'!$A$2:$A$12, 1))-(W102*W103-INDEX('Tabelas IRS'!$D$2:$D$12, MATCH(W32, 'Tabelas IRS'!$A$2:$A$12, 1))) ->  | X106: Imposto da Mais-valia | Y106: =Y104*Y105-INDEX('Tabelas IRS'!$D$2:$D$12, MATCH(Y32, 'Tabelas IRS'!$A$2:$A$12, 1))-(Y102*Y103-INDEX('Tabelas IRS'!$D$2:$D$12, MATCH(Y32, 'Tabelas IRS'!$A$2:$A$12, 1))) ->  | Z106: Imposto da Mais-valia | AA106: =AA104*AA105-INDEX('Tabelas IRS'!$D$2:$D$12, MATCH(AA32, 'Tabelas IRS'!$A$2:$A$12, 1))-(AA102*AA103-INDEX('Tabelas IRS'!$D$2:$D$12, MATCH(AA32, 'Tabelas IRS'!$A$2:$A$12, 1))) ->  | AB106: Imposto da Mais-valia | AC106: =AC104*AC105-INDEX('Tabelas IRS'!$D$2:$D$12, MATCH(AC32, 'Tabelas IRS'!$A$2:$A$12, 1))-(AC102*AC103-INDEX('Tabelas IRS'!$D$2:$D$12, MATCH(AC32, 'Tabelas IRS'!$A$2:$A$12, 1))) ->  | AD106: Imposto da Mais-valia | AE106: =AE104*AE105-INDEX('Tabelas IRS'!$D$2:$D$12, MATCH(AE32, 'Tabelas IRS'!$A$2:$A$12, 1))-(AE102*AE103-INDEX('Tabelas IRS'!$D$2:$D$12, MATCH(AE32, 'Tabelas IRS'!$A$2:$A$12, 1))) -> 
B108: Proprietários de Raiz 1 | D108: Proprietários de Raiz 2 | F108: Proprietários de Raiz 3 | H108: Proprietários de Raiz 4 | J108: Proprietários de Raiz 5 | L108: Proprietários de Raiz 6 | N108: Proprietários de Raiz 7 | P108: Proprietários de Raiz 8 | R108: Proprietários de Raiz 9 | T108: Proprietários de Raiz | V108: Proprietários de Raiz | X108: Proprietários de Raiz 10 | Z108: Proprietários de Raiz 11 | AB108: Proprietários de Raiz 12 | AD108: Proprietários de Raiz 13
B109: Nome | C109: André | D109: Nome | E109: Francisco | F109: Nome | H109: Nome | J109: Nome | L109: Nome | N109: Nome | P109: Nome | R109: Nome | T109: Nome | V109: Nome | X109: Nome | Z109: Nome | AB109: Nome | AD109: Nome
A110: =SUM(INDEX(110:110, _xlfn.SEQUENCE(C3, , 3, 2))) -> 1 | B110: Quota-parte do direito | C110: 0.5 | D110: Quota-parte do direito | E110: 0.5 | F110: Quota-parte do direito | H110: Quota-parte do direito | J110: Quota-parte do direito | L110: Quota-parte do direito | N110: Quota-parte do direito | P110: Quota-parte do direito | R110: Quota-parte do direito | T110: Quota-parte do direito | V110: Quota-parte do direito | X110: Quota-parte do direito | Z110: Quota-parte do direito | AB110: Quota-parte do direito | AD110: Quota-parte do direito
A111: =IF(A110<>100%, "As percentagens dos proprietários de raiz não totalizam 100%, voltar a confirmar quotas de todos os proprietários", "") ->  | B111: Origem | C111: Herança de terceiro | D111: Origem | E111: Herança de terceiro | F111: Origem | H111: Origem | J111: Origem | L111: Origem | N111: Origem | P111: Origem | R111: Origem | T111: Origem | V111: Origem | X111: Origem | Z111: Origem | AB111: Origem | AD111: Origem
B112: =IF(C111="Herança direta", "Valor patrimonial", IF(C111="Herança de terceiro", "Valor do imóvel na doação", IF(C111="Aquisição", "Valor de aquisição", ""))) -> Valor do imóvel na doação | C112: 19000 | D112: =IF(E111="Herança direta", "Valor patrimonial", IF(E111="Herança de terceiro", "Valor do imóvel na doação", IF(E111="Aquisição", "Valor de aquisição", ""))) -> Valor do imóvel na doação | E112: 19000 | F112: =IF(G111="Herança direta", "Valor patrimonial", IF(G111="Herança de terceiro", "Valor do imóvel na doação", IF(G111="Aquisição", "Valor de aquisição", ""))) ->  | H112: =IF(I111="Herança direta", "Valor patrimonial", IF(I111="Herança de terceiro", "Valor do imóvel na doação", IF(I111="Aquisição", "Valor de aquisição", ""))) ->  | J112: =IF(K111="Herança direta", "Valor patrimonial", IF(K111="Herança de terceiro", "Valor do imóvel na doação", IF(K111="Aquisição", "Valor de aquisição", ""))) ->  | L112: =IF(M111="Herança direta", "Valor patrimonial", IF(M111="Herança de terceiro", "Valor do imóvel na doação", IF(M111="Aquisição", "Valor de aquisição", ""))) ->  | N112: =IF(O111="Herança direta", "Valor patrimonial", IF(O111="Herança de terceiro", "Valor do imóvel na doação", IF(O111="Aquisição", "Valor de aquisição", ""))) ->  | P112: =IF(Q111="Herança direta", "Valor patrimonial", IF(Q111="Herança de terceiro", "Valor do imóvel na doação", IF(Q111="Aquisição", "Valor de aquisição", ""))) ->  | R112: =IF(S111="Herança direta", "Valor patrimonial", IF(S111="Herança de terceiro", "Valor do imóvel na doação", IF(S111="Aquisição", "Valor de aquisição", ""))) ->  | T112: =IF(U111="Herança direta", "Valor patrimonial", IF(U111="Herança de terceiro", "Valor do imóvel na doação", IF(U111="Aquisição", "Valor de aquisição", ""))) ->  | V112: =IF(W111="Herança direta", "Valor patrimonial", IF(W111="Herança de terceiro", "Valor do imóvel na doação", IF(W111="Aquisição", "Valor de aquisição", ""))) ->  | X112: =IF(Y111="Herança direta", "Valor patrimonial", IF(Y111="Herança de terceiro", "Valor do imóvel na doação", IF(Y111="Aquisição", "Valor de aquisição", ""))) ->  | Z112: =IF(AA111="Herança direta", "Valor patrimonial", IF(AA111="Herança de terceiro", "Valor do imóvel na doação", IF(AA111="Aquisição", "Valor de aquisição", ""))) ->  | AB112: =IF(AC111="Herança direta", "Valor patrimonial", IF(AC111="Herança de terceiro", "Valor do imóvel na doação", IF(AC111="Aquisição", "Valor de aquisição", ""))) ->  | AD112: =IF(AE111="Herança direta", "Valor patrimonial", IF(AE111="Herança de terceiro", "Valor do imóvel na doação", IF(AE111="Aquisição", "Valor de aquisição", ""))) -> 
B113: Ano de aquisição | C113: 2013 | D113: Ano de aquisição | E113: 2013 | F113: Ano de aquisição | H113: Ano de aquisição | J113: Ano de aquisição | L113: Ano de aquisição | N113: Ano de aquisição | P113: Ano de aquisição | R113: Ano de aquisição | T113: Ano de aquisição | V113: Ano de aquisição | X113: Ano de aquisição | Z113: Ano de aquisição | AB113: Ano de aquisição | AD113: Ano de aquisição
B114: Obras nos últimos 12 anos | C114: 0 | D114: Obras nos últimos 12 anos | E114: 0 | F114: Obras nos últimos 12 anos | H114: Obras nos últimos 12 anos | J114: Obras nos últimos 12 anos | L114: Obras nos últimos 12 anos | N114: Obras nos últimos 12 anos | P114: Obras nos últimos 12 anos | R114: Obras nos últimos 12 anos | T114: Obras nos últimos 12 anos | V114: Obras nos últimos 12 anos | X114: Obras nos últimos 12 anos | Z114: Obras nos últimos 12 anos | AB114: Obras nos últimos 12 anos | AD114: Obras nos últimos 12 anos
B115: Impostos pagos na aquisição | C115: 100 | D115: Impostos pagos na aquisição | E115: 100 | F115: Impostos pagos na aquisição | H115: Impostos pagos na aquisição | J115: Impostos pagos na aquisição | L115: Impostos pagos na aquisição | N115: Impostos pagos na aquisição | P115: Impostos pagos na aquisição | R115: Impostos pagos na aquisição | T115: Impostos pagos na aquisição | V115: Impostos pagos na aquisição | X115: Impostos pagos na aquisição | Z115: Impostos pagos na aquisição | AB115: Impostos pagos na aquisição | AD115: Impostos pagos na aquisição
B116: Comissão imobiliária | C116: 2460 | D116: Comissão imobiliária | E116: 2460 | F116: Comissão imobiliária | H116: Comissão imobiliária | J116: Comissão imobiliária | L116: Comissão imobiliária | N116: Comissão imobiliária | P116: Comissão imobiliária | R116: Comissão imobiliária | T116: Comissão imobiliária | V116: Comissão imobiliária | X116: Comissão imobiliária | Z116: Comissão imobiliária | AB116: Comissão imobiliária | AD116: Comissão imobiliária
B117: Outros encargos dedutíveis | C117: 0 | D117: Outros encargos dedutíveis | E117: 0 | F117: Outros encargos dedutíveis | H117: Outros encargos dedutíveis | J117: Outros encargos dedutíveis | L117: Outros encargos dedutíveis | N117: Outros encargos dedutíveis | P117: Outros encargos dedutíveis | R117: Outros encargos dedutíveis | T117: Outros encargos dedutíveis | V117: Outros encargos dedutíveis | X117: Outros encargos dedutíveis | Z117: Outros encargos dedutíveis | AB117: Outros encargos dedutíveis | AD117: Outros encargos dedutíveis
B118: Cálculo da mais valia | D118: Cálculo da mais valia | F118: Cálculo da mais valia | H118: Cálculo da mais valia | J118: Cálculo da mais valia | L118: Cálculo da mais valia | N118: Cálculo da mais valia | P118: Cálculo da mais valia | R118: Cálculo da mais valia | T118: Cálculo da mais valia | V118: Cálculo da mais valia | X118: Cálculo da mais valia | Z118: Cálculo da mais valia | AB118: Cálculo da mais valia | AD118: Cálculo da mais valia
B119: Coeficiente de atualização | C119: =VLOOKUP(C113, 'Coeficiente de atualização'!B26:C178, 2, FALSE) -> 1.17 | D119: Coeficiente de atualização | E119: =VLOOKUP(E113, 'Coeficiente de atualização'!$B$26:$C$178, 2, FALSE) -> 1.17 | F119: Coeficiente de atualização | G119: =VLOOKUP(G113, 'Coeficiente de atualização'!$B$26:$C$178, 2, FALSE) ->  | H119: Coeficiente de atualização | I119: =VLOOKUP(I113, 'Coeficiente de atualização'!$B$26:$C$178, 2, FALSE) ->  | J119: Coeficiente de atualização | K119: =VLOOKUP(K113, 'Coeficiente de atualização'!$B$26:$C$178, 2, FALSE) ->  | L119: Coeficiente de atualização | M119: =VLOOKUP(M113, 'Coeficiente de atualização'!$B$26:$C$178, 2, FALSE) ->  | N119: Coeficiente de atualização | O119: =VLOOKUP(O113, 'Coeficiente de atualização'!$B$26:$C$178, 2, FALSE) ->  | P119: Coeficiente de atualização | Q119: =VLOOKUP(Q113, 'Coeficiente de atualização'!$B$26:$C$178, 2, FALSE) ->  | R119: Coeficiente de atualização | S119: =VLOOKUP(S113, 'Coeficiente de atualização'!$B$26:$C$178, 2, FALSE) ->  | T119: Coeficiente de atualização | U119: =VLOOKUP(U113, 'Coeficiente de atualização'!$B$26:$C$178, 2, FALSE) ->  | V119: Coeficiente de atualização | W119: =VLOOKUP(W113, 'Coeficiente de atualização'!$B$26:$C$178, 2, FALSE) ->  | X119: Coeficiente de atualização | Y119: =VLOOKUP(Y113, 'Coeficiente de atualização'!$B$26:$C$178, 2, FALSE) ->  | Z119: Coeficiente de atualização | AA119: =VLOOKUP(AA113, 'Coeficiente de atualização'!$B$26:$C$178, 2, FALSE) ->  | AB119: Coeficiente de atualização | AC119: =VLOOKUP(AC113, 'Coeficiente de atualização'!$B$26:$C$178, 2, FALSE) ->  | AD119: Coeficiente de atualização | AE119: =VLOOKUP(AE113, 'Coeficiente de atualização'!$B$26:$C$178, 2, FALSE) -> 
B120: Despesas e encargos | C120: =C115++C114+C116+C117 -> 2560 | D120: Despesas e encargos | E120: =E114+E115+E116+E117 -> 2560 | F120: Despesas e encargos | G120: =G114+G115+G116+G117 -> 0 | H120: Despesas e encargos | I120: =I114+I115+I116+I117 -> 0 | J120: Despesas e encargos | K120: =K114+K115+K116+K117 -> 0 | L120: Despesas e encargos | M120: =M114+M115+M116+M117 -> 0 | N120: Despesas e encargos | O120: =O114+O115+O116+O117 -> 0 | P120: Despesas e encargos | Q120: =Q114+Q115+Q116+Q117 -> 0 | R120: Despesas e encargos | S120: =S114+S115+S116+S117 -> 0 | T120: Despesas e encargos | U120: =U114+U115+U116+U117 -> 0 | V120: Despesas e encargos | W120: =W114+W115+W116+W117 -> 0 | X120: Despesas e encargos | Y120: =Y114+Y115+Y116+Y117 -> 0 | Z120: Despesas e encargos | AA120: =AA114+AA115+AA116+AA117 -> 0 | AB120: Despesas e encargos | AC120: =AC114+AC115+AC116+AC117 -> 0 | AD120: Despesas e encargos | AE120: =AE114+AE115+AE116+AE117 -> 0
A121: =1-A98 -> 0.6 | B121: Quota-parte da mais-valia | C121: =A121*C110 -> 0.3 | D121: Quota-parte da mais-valia | E121: =$A$121*E110 -> 0.3 | F121: Quota-parte da mais-valia | G121: =$A$121*G110 -> 0 | H121: Quota-parte da mais-valia | I121: =$A$121*I110 -> 0 | J121: Quota-parte da mais-valia | K121: =$A$121*K110 -> 0 | L121: Quota-parte da mais-valia | M121: =$A$121*M110 -> 0 | N121: Quota-parte da mais-valia | O121: =$A$121*O110 -> 0 | P121: Quota-parte da mais-valia | Q121: =$A$121*Q110 -> 0 | R121: Quota-parte da mais-valia | S121: =$A$121*S110 -> 0 | T121: Quota-parte da mais-valia | U121: =$A$121*U110 -> 0 | V121: Quota-parte da mais-valia | W121: =$A$121*W110 -> 0 | X121: Quota-parte da mais-valia | Y121: =$A$121*Y110 -> 0 | Z121: Quota-parte da mais-valia | AA121: =$A$121*AA110 -> 0 | AB121: Quota-parte da mais-valia | AC121: =$A$121*AC110 -> 0 | AD121: Quota-parte da mais-valia | AE121: =$A$121*AE110 -> 0
B122: Mais-valia do proprietário de raiz | C122: =(C8-(C112*C119)-C120)*C121 -> 46563 | D122: Mais-valia do proprietário de raiz | E122: =($C$8-(E112*E119)-E120)*E121 -> 46563 | F122: Mais-valia do proprietário de raiz | G122: =($C$8-(G112*G119)-G120)*G121 ->  | H122: Mais-valia do proprietário de raiz | I122: =($C$8-(I112*I119)-I120)*I121 ->  | J122: Mais-valia do proprietário de raiz | K122: =($C$8-(K112*K119)-K120)*K121 ->  | L122: Mais-valia do proprietário de raiz | M122: =($C$8-(M112*M119)-M120)*M121 ->  | N122: Mais-valia do proprietário de raiz | O122: =($C$8-(O112*O119)-O120)*O121 ->  | P122: Mais-valia do proprietário de raiz | Q122: =($C$8-(Q112*Q119)-Q120)*Q121 ->  | R122: Mais-valia do proprietário de raiz | S122: =($C$8-(S112*S119)-S120)*S121 ->  | T122: Mais-valia do proprietário de raiz | U122: =($C$8-(U112*U119)-U120)*U121 ->  | V122: Mais-valia do proprietário de raiz | W122: =($C$8-(W112*W119)-W120)*W121 ->  | X122: Mais-valia do proprietário de raiz | Y122: =($C$8-(Y112*Y119)-Y120)*Y121 ->  | Z122: Mais-valia do proprietário de raiz | AA122: =($C$8-(AA112*AA119)-AA120)*AA121 ->  | AB122: Mais-valia do proprietário de raiz | AC122: =($C$8-(AC112*AC119)-AC120)*AC121 ->  | AD122: Mais-valia do proprietário de raiz | AE122: =($C$8-(AE112*AE119)-AE120)*AE121 -> 
B123: Art 43º (50%) | C123: =C122/2 -> 23281.5 | D123: Art 43º (50%) | E123: =E122/2 -> 23281.5 | F123: Art 43º (50%) | G123: =G122/2 ->  | H123: Art 43º (50%) | I123: =I122/2 ->  | J123: Art 43º (50%) | K123: =K122/2 ->  | L123: Art 43º (50%) | M123: =M122/2 ->  | N123: Art 43º (50%) | O123: =O122/2 ->  | P123: Art 43º (50%) | Q123: =Q122/2 ->  | R123: Art 43º (50%) | S123: =S122/2 ->  | T123: Art 43º (50%) | U123: =U122/2 ->  | V123: Art 43º (50%) | W123: =W122/2 ->  | X123: Art 43º (50%) | Y123: =Y122/2 ->  | Z123: Art 43º (50%) | AA123: =AA122/2 ->  | AB123: Art 43º (50%) | AC123: =AC122/2 ->  | AD123: Art 43º (50%) | AE123: =AE122/2 -> 
B124: Dados pessoais | D124: Dados pessoais | F124: Dados pessoais | H124: Dados pessoais | J124: Dados pessoais | L124: Dados pessoais | N124: Dados pessoais | P124: Dados pessoais | R124: Dados pessoais | T124: Dados pessoais | V124: Dados pessoais | X124: Dados pessoais | Z124: Dados pessoais | AB124: Dados pessoais | AD124: Dados pessoais
B125: Rendimento anual coletável | C125: 20000 | D125: Rendimento anual coletável | E125: 15000 | F125: Rendimento anual coletável | H125: Rendimento anual coletável | J125: Rendimento anual coletável | L125: Rendimento anual coletável | N125: Rendimento anual coletável | P125: Rendimento anual coletável | R125: Rendimento anual coletável | T125: Rendimento anual coletável | V125: Rendimento anual coletável | X125: Rendimento anual coletável | Z125: Rendimento anual coletável | AB125: Rendimento anual coletável | AD125: Rendimento anual coletável
A126: =IF(A98+A121<>100%, "As percentagens dos usufrutuários e nu-proprietários não totalizam 100%, voltar a confirmar quotas de todos os proprietários", "") ->  | B126: Taxa de IRS | C126: =IFERROR( ( (C125 * INDEX('Tabelas IRS'!$C$2:$C$12, MATCH(C125, 'Tabelas IRS'!$A$2:$A$12, 1))) - INDEX('Tabelas IRS'!$D$2:$D$12, MATCH(C125, 'Tabelas IRS'!$A$2:$A$12, 1)) ) / C125, 0 ) -> 0.1766045 | D126: Taxa de IRS | E126: =IFERROR( ( (E125 * INDEX('Tabelas IRS'!$C$2:$C$12, MATCH(E125, 'Tabelas IRS'!$A$2:$A$12, 1))) - INDEX('Tabelas IRS'!$D$2:$D$12, MATCH(E125, 'Tabelas IRS'!$A$2:$A$12, 1)) ) / E125, 0 ) -> 0.156606 | F126: Taxa de IRS | G126: =IFERROR( ( (G125 * INDEX('Tabelas IRS'!$C$2:$C$12, MATCH(G125, 'Tabelas IRS'!$A$2:$A$12, 1))) - INDEX('Tabelas IRS'!$D$2:$D$12, MATCH(G125, 'Tabelas IRS'!$A$2:$A$12, 1)) ) / G125, 0 ) -> 0 | H126: Taxa de IRS | I126: =IFERROR( ( (I125 * INDEX('Tabelas IRS'!$C$2:$C$12, MATCH(I125, 'Tabelas IRS'!$A$2:$A$12, 1))) - INDEX('Tabelas IRS'!$D$2:$D$12, MATCH(I125, 'Tabelas IRS'!$A$2:$A$12, 1)) ) / I125, 0 ) -> 0 | J126: Taxa de IRS | K126: =IFERROR( ( (K125 * INDEX('Tabelas IRS'!$C$2:$C$12, MATCH(K125, 'Tabelas IRS'!$A$2:$A$12, 1))) - INDEX('Tabelas IRS'!$D$2:$D$12, MATCH(K125, 'Tabelas IRS'!$A$2:$A$12, 1)) ) / K125, 0 ) -> 0 | L126: Taxa de IRS | M126: =IFERROR( ( (M125 * INDEX('Tabelas IRS'!$C$2:$C$12, MATCH(M125, 'Tabelas IRS'!$A$2:$A$12, 1))) - INDEX('Tabelas IRS'!$D$2:$D$12, MATCH(M125, 'Tabelas IRS'!$A$2:$A$12, 1)) ) / M125, 0 ) -> 0 | N126: Taxa de IRS | O126: =IFERROR( ( (O125 * INDEX('Tabelas IRS'!$C$2:$C$12, MATCH(O125, 'Tabelas IRS'!$A$2:$A$12, 1))) - INDEX('Tabelas IRS'!$D$2:$D$12, MATCH(O125, 'Tabelas IRS'!$A$2:$A$12, 1)) ) / O125, 0 ) -> 0 | P126: Taxa de IRS | Q126: =IFERROR( ( (Q125 * INDEX('Tabelas IRS'!$C$2:$C$12, MATCH(Q125, 'Tabelas IRS'!$A$2:$A$12, 1))) - INDEX('Tabelas IRS'!$D$2:$D$12, MATCH(Q125, 'Tabelas IRS'!$A$2:$A$12, 1)) ) / Q125, 0 ) -> 0 | R126: Taxa de IRS | S126: =IFERROR( ( (S125 * INDEX('Tabelas IRS'!$C$2:$C$12, MATCH(S125, 'Tabelas IRS'!$A$2:$A$12, 1))) - INDEX('Tabelas IRS'!$D$2:$D$12, MATCH(S125, 'Tabelas IRS'!$A$2:$A$12, 1)) ) / S125, 0 ) -> 0 | T126: Taxa de IRS | U126: =IFERROR( ( (U125 * INDEX('Tabelas IRS'!$C$2:$C$12, MATCH(U125, 'Tabelas IRS'!$A$2:$A$12, 1))) - INDEX('Tabelas IRS'!$D$2:$D$12, MATCH(U125, 'Tabelas IRS'!$A$2:$A$12, 1)) ) / U125, 0 ) -> 0 | V126: Taxa de IRS | W126: =IFERROR( ( (W125 * INDEX('Tabelas IRS'!$C$2:$C$12, MATCH(W125, 'Tabelas IRS'!$A$2:$A$12, 1))) - INDEX('Tabelas IRS'!$D$2:$D$12, MATCH(W125, 'Tabelas IRS'!$A$2:$A$12, 1)) ) / W125, 0 ) -> 0 | X126: Taxa de IRS | Y126: =IFERROR( ( (Y125 * INDEX('Tabelas IRS'!$C$2:$C$12, MATCH(Y125, 'Tabelas IRS'!$A$2:$A$12, 1))) - INDEX('Tabelas IRS'!$D$2:$D$12, MATCH(Y125, 'Tabelas IRS'!$A$2:$A$12, 1)) ) / Y125, 0 ) -> 0 | Z126: Taxa de IRS | AA126: =IFERROR( ( (AA125 * INDEX('Tabelas IRS'!$C$2:$C$12, MATCH(AA125, 'Tabelas IRS'!$A$2:$A$12, 1))) - INDEX('Tabelas IRS'!$D$2:$D$12, MATCH(AA125, 'Tabelas IRS'!$A$2:$A$12, 1)) ) / AA125, 0 ) -> 0 | AB126: Taxa de IRS | AC126: =IFERROR( ( (AC125 * INDEX('Tabelas IRS'!$C$2:$C$12, MATCH(AC125, 'Tabelas IRS'!$A$2:$A$12, 1))) - INDEX('Tabelas IRS'!$D$2:$D$12, MATCH(AC125, 'Tabelas IRS'!$A$2:$A$12, 1)) ) / AC125, 0 ) -> 0 | AD126: Taxa de IRS | AE126: =IFERROR( ( (AE125 * INDEX('Tabelas IRS'!$C$2:$C$12, MATCH(AE125, 'Tabelas IRS'!$A$2:$A$12, 1))) - INDEX('Tabelas IRS'!$D$2:$D$12, MATCH(AE125, 'Tabelas IRS'!$A$2:$A$12, 1)) ) / AE125, 0 ) -> 0
B127: Rendimento anual com mais-valia | C127: =C125+C123 -> 43281.5 | D127: Rendimento anual com mais-valia | E127: =E125+E123 -> 38281.5 | F127: Rendimento anual com mais-valia | G127: =G125+G123 ->  | H127: Rendimento anual com mais-valia | I127: =I125+I123 ->  | J127: Rendimento anual com mais-valia | K127: =K125+K123 ->  | L127: Rendimento anual com mais-valia | M127: =M125+M123 ->  | N127: Rendimento anual com mais-valia | O127: =O125+O123 ->  | P127: Rendimento anual com mais-valia | Q127: =Q125+Q123 ->  | R127: Rendimento anual com mais-valia | S127: =S125+S123 ->  | T127: Rendimento anual com mais-valia | U127: =U125+U123 ->  | V127: Rendimento anual com mais-valia | W127: =W125+W123 ->  | X127: Rendimento anual com mais-valia | Y127: =Y125+Y123 ->  | Z127: Rendimento anual com mais-valia | AA127: =AA125+AA123 ->  | AB127: Rendimento anual com mais-valia | AC127: =AC125+AC123 ->  | AD127: Rendimento anual com mais-valia | AE127: =AE125+AE123 -> 
B128: Taxa de IRS | C128: =IFERROR( ( (C127 * INDEX('Tabelas IRS'!$C$2:$C$12, MATCH(C127, 'Tabelas IRS'!$A$2:$A$12, 1))) - INDEX('Tabelas IRS'!$D$2:$D$12, MATCH(C127, 'Tabelas IRS'!$A$2:$A$12, 1)) ) / C127, 0 ) -> 0.2650946132 | D128: Taxa de IRS | E128: =IFERROR( ( (E127 * INDEX('Tabelas IRS'!$C$2:$C$12, MATCH(E127, 'Tabelas IRS'!$A$2:$A$12, 1))) - INDEX('Tabelas IRS'!$D$2:$D$12, MATCH(E127, 'Tabelas IRS'!$A$2:$A$12, 1)) ) / E127, 0 ) -> 0.2499064169 | F128: Taxa de IRS | G128: =IFERROR( ( (G127 * INDEX('Tabelas IRS'!$C$2:$C$12, MATCH(G127, 'Tabelas IRS'!$A$2:$A$12, 1))) - INDEX('Tabelas IRS'!$D$2:$D$12, MATCH(G127, 'Tabelas IRS'!$A$2:$A$12, 1)) ) / G127, 0 ) -> 0 | H128: Taxa de IRS | I128: =IFERROR( ( (I127 * INDEX('Tabelas IRS'!$C$2:$C$12, MATCH(I127, 'Tabelas IRS'!$A$2:$A$12, 1))) - INDEX('Tabelas IRS'!$D$2:$D$12, MATCH(I127, 'Tabelas IRS'!$A$2:$A$12, 1)) ) / I127, 0 ) -> 0 | J128: Taxa de IRS | K128: =IFERROR( ( (K127 * INDEX('Tabelas IRS'!$C$2:$C$12, MATCH(K127, 'Tabelas IRS'!$A$2:$A$12, 1))) - INDEX('Tabelas IRS'!$D$2:$D$12, MATCH(K127, 'Tabelas IRS'!$A$2:$A$12, 1)) ) / K127, 0 ) -> 0 | L128: Taxa de IRS | M128: =IFERROR( ( (M127 * INDEX('Tabelas IRS'!$C$2:$C$12, MATCH(M127, 'Tabelas IRS'!$A$2:$A$12, 1))) - INDEX('Tabelas IRS'!$D$2:$D$12, MATCH(M127, 'Tabelas IRS'!$A$2:$A$12, 1)) ) / M127, 0 ) -> 0 | N128: Taxa de IRS | O128: =IFERROR( ( (O127 * INDEX('Tabelas IRS'!$C$2:$C$12, MATCH(O127, 'Tabelas IRS'!$A$2:$A$12, 1))) - INDEX('Tabelas IRS'!$D$2:$D$12, MATCH(O127, 'Tabelas IRS'!$A$2:$A$12, 1)) ) / O127, 0 ) -> 0 | P128: Taxa de IRS | Q128: =IFERROR( ( (Q127 * INDEX('Tabelas IRS'!$C$2:$C$12, MATCH(Q127, 'Tabelas IRS'!$A$2:$A$12, 1))) - INDEX('Tabelas IRS'!$D$2:$D$12, MATCH(Q127, 'Tabelas IRS'!$A$2:$A$12, 1)) ) / Q127, 0 ) -> 0 | R128: Taxa de IRS | S128: =IFERROR( ( (S127 * INDEX('Tabelas IRS'!$C$2:$C$12, MATCH(S127, 'Tabelas IRS'!$A$2:$A$12, 1))) - INDEX('Tabelas IRS'!$D$2:$D$12, MATCH(S127, 'Tabelas IRS'!$A$2:$A$12, 1)) ) / S127, 0 ) -> 0 | T128: Taxa de IRS | U128: =IFERROR( ( (U127 * INDEX('Tabelas IRS'!$C$2:$C$12, MATCH(U127, 'Tabelas IRS'!$A$2:$A$12, 1))) - INDEX('Tabelas IRS'!$D$2:$D$12, MATCH(U127, 'Tabelas IRS'!$A$2:$A$12, 1)) ) / U127, 0 ) -> 0 | V128: Taxa de IRS | W128: =IFERROR( ( (W127 * INDEX('Tabelas IRS'!$C$2:$C$12, MATCH(W127, 'Tabelas IRS'!$A$2:$A$12, 1))) - INDEX('Tabelas IRS'!$D$2:$D$12, MATCH(W127, 'Tabelas IRS'!$A$2:$A$12, 1)) ) / W127, 0 ) -> 0 | X128: Taxa de IRS | Y128: =IFERROR( ( (Y127 * INDEX('Tabelas IRS'!$C$2:$C$12, MATCH(Y127, 'Tabelas IRS'!$A$2:$A$12, 1))) - INDEX('Tabelas IRS'!$D$2:$D$12, MATCH(Y127, 'Tabelas IRS'!$A$2:$A$12, 1)) ) / Y127, 0 ) -> 0 | Z128: Taxa de IRS | AA128: =IFERROR( ( (AA127 * INDEX('Tabelas IRS'!$C$2:$C$12, MATCH(AA127, 'Tabelas IRS'!$A$2:$A$12, 1))) - INDEX('Tabelas IRS'!$D$2:$D$12, MATCH(AA127, 'Tabelas IRS'!$A$2:$A$12, 1)) ) / AA127, 0 ) -> 0 | AB128: Taxa de IRS | AC128: =IFERROR( ( (AC127 * INDEX('Tabelas IRS'!$C$2:$C$12, MATCH(AC127, 'Tabelas IRS'!$A$2:$A$12, 1))) - INDEX('Tabelas IRS'!$D$2:$D$12, MATCH(AC127, 'Tabelas IRS'!$A$2:$A$12, 1)) ) / AC127, 0 ) -> 0 | AD128: Taxa de IRS | AE128: =IFERROR( ( (AE127 * INDEX('Tabelas IRS'!$C$2:$C$12, MATCH(AE127, 'Tabelas IRS'!$A$2:$A$12, 1))) - INDEX('Tabelas IRS'!$D$2:$D$12, MATCH(AE127, 'Tabelas IRS'!$A$2:$A$12, 1)) ) / AE127, 0 ) -> 0
B129: Imposto da Mais-valia | C129: =C127*C128-INDEX('Tabelas IRS'!D4:D12,MATCH(C127,'Tabelas IRS'!B4:B12,1))-(C125*C126-INDEX('Tabelas IRS'!D4:D12,MATCH(C127,'Tabelas IRS'!B4:B12,1))) -> 7941.6025 | D129: Imposto da Mais-valia | E129: =E127*E128-INDEX('Tabelas IRS'!$D$2:$D$12, MATCH(E32, 'Tabelas IRS'!$A$2:$A$12, 1))-(E125*E126-INDEX('Tabelas IRS'!$D$2:$D$12, MATCH(E32, 'Tabelas IRS'!$A$2:$A$12, 1))) -> 7217.7025 | F129: Imposto da Mais-valia | G129: =G127*G128-INDEX('Tabelas IRS'!$D$2:$D$12, MATCH(G32, 'Tabelas IRS'!$A$2:$A$12, 1))-(G125*G126-INDEX('Tabelas IRS'!$D$2:$D$12, MATCH(G32, 'Tabelas IRS'!$A$2:$A$12, 1))) ->  | H129: Imposto da Mais-valia | I129: =I127*I128-INDEX('Tabelas IRS'!$D$2:$D$12, MATCH(I32, 'Tabelas IRS'!$A$2:$A$12, 1))-(I125*I126-INDEX('Tabelas IRS'!$D$2:$D$12, MATCH(I32, 'Tabelas IRS'!$A$2:$A$12, 1))) ->  | J129: Imposto da Mais-valia | K129: =K127*K128-INDEX('Tabelas IRS'!$D$2:$D$12, MATCH(K32, 'Tabelas IRS'!$A$2:$A$12, 1))-(K125*K126-INDEX('Tabelas IRS'!$D$2:$D$12, MATCH(K32, 'Tabelas IRS'!$A$2:$A$12, 1))) ->  | L129: Imposto da Mais-valia | M129: =M127*M128-INDEX('Tabelas IRS'!$D$2:$D$12, MATCH(M32, 'Tabelas IRS'!$A$2:$A$12, 1))-(M125*M126-INDEX('Tabelas IRS'!$D$2:$D$12, MATCH(M32, 'Tabelas IRS'!$A$2:$A$12, 1))) ->  | N129: Imposto da Mais-valia | O129: =O127*O128-INDEX('Tabelas IRS'!$D$2:$D$12, MATCH(O32, 'Tabelas IRS'!$A$2:$A$12, 1))-(O125*O126-INDEX('Tabelas IRS'!$D$2:$D$12, MATCH(O32, 'Tabelas IRS'!$A$2:$A$12, 1))) ->  | P129: Imposto da Mais-valia | Q129: =Q127*Q128-INDEX('Tabelas IRS'!$D$2:$D$12, MATCH(Q32, 'Tabelas IRS'!$A$2:$A$12, 1))-(Q125*Q126-INDEX('Tabelas IRS'!$D$2:$D$12, MATCH(Q32, 'Tabelas IRS'!$A$2:$A$12, 1))) ->  | R129: Imposto da Mais-valia | S129: =S127*S128-INDEX('Tabelas IRS'!$D$2:$D$12, MATCH(S32, 'Tabelas IRS'!$A$2:$A$12, 1))-(S125*S126-INDEX('Tabelas IRS'!$D$2:$D$12, MATCH(S32, 'Tabelas IRS'!$A$2:$A$12, 1))) ->  | T129: Imposto da Mais-valia | U129: =U127*U128-INDEX('Tabelas IRS'!$D$2:$D$12, MATCH(U32, 'Tabelas IRS'!$A$2:$A$12, 1))-(U125*U126-INDEX('Tabelas IRS'!$D$2:$D$12, MATCH(U32, 'Tabelas IRS'!$A$2:$A$12, 1))) ->  | V129: Imposto da Mais-valia | W129: =W127*W128-INDEX('Tabelas IRS'!$D$2:$D$12, MATCH(W32, 'Tabelas IRS'!$A$2:$A$12, 1))-(W125*W126-INDEX('Tabelas IRS'!$D$2:$D$12, MATCH(W32, 'Tabelas IRS'!$A$2:$A$12, 1))) ->  | X129: Imposto da Mais-valia | Y129: =Y127*Y128-INDEX('Tabelas IRS'!$D$2:$D$12, MATCH(Y32, 'Tabelas IRS'!$A$2:$A$12, 1))-(Y125*Y126-INDEX('Tabelas IRS'!$D$2:$D$12, MATCH(Y32, 'Tabelas IRS'!$A$2:$A$12, 1))) ->  | Z129: Imposto da Mais-valia | AA129: =AA127*AA128-INDEX('Tabelas IRS'!$D$2:$D$12, MATCH(AA32, 'Tabelas IRS'!$A$2:$A$12, 1))-(AA125*AA126-INDEX('Tabelas IRS'!$D$2:$D$12, MATCH(AA32, 'Tabelas IRS'!$A$2:$A$12, 1))) ->  | AB129: Imposto da Mais-valia | AC129: =AC127*AC128-INDEX('Tabelas IRS'!$D$2:$D$12, MATCH(AC32, 'Tabelas IRS'!$A$2:$A$12, 1))-(AC125*AC126-INDEX('Tabelas IRS'!$D$2:$D$12, MATCH(AC32, 'Tabelas IRS'!$A$2:$A$12, 1))) ->  | AD129: Imposto da Mais-valia | AE129: =AE127*AE128-INDEX('Tabelas IRS'!$D$2:$D$12, MATCH(AE32, 'Tabelas IRS'!$A$2:$A$12, 1))-(AE125*AE126-INDEX('Tabelas IRS'!$D$2:$D$12, MATCH(AE32, 'Tabelas IRS'!$A$2:$A$12, 1))) -> 

Sheet Tabelas IRS
A1: IRS - Trabalhador, não casado, sem dependentes, em Portugal Continental
A2: IRS
A3: Limite mínimo | B3: F (Limite Máximo) | C3: G (Taxa) | D3: H (Parcela)
A4: 0 | B4: 8059 | C4: 0.13 | D4: 0
A5: 8059.01 | B5: 12160 | C5: 0.165 | D5: 282.07
A6: 12160.01 | B6: 17233 | C6: 0.22 | D6: 950.91
A7: 17233.01 | B7: 22306 | C7: 0.25 | D7: 1467.91
A8: 22306.01 | B8: 28400 | C8: 0.32 | D8: 3029.38
A9: 28400.01 | B9: 41629 | C9: 0.355 | D9: 4023.14
A10: 41629.01 | B10: 44987 | C10: 0.435 | D10: 7353.76
A11: 44987.01 | B11: 83696 | C11: 0.45 | D11: 8028.38
A12: 83696.01 | B12: 999999999 | C12: 0.48 | D12: 10539

Sheet Coeficiente de atualização
B2: Anos | C2: Coeficientes
B3: Até 1903 | C3: 5463.93
B4: 1904 | C4: 5086.29
B5: 1905 | C5: 5086.29
B6: 1906 | C6: 5086.29
B7: 1907 | C7: 5086.29
B8: 1908 | C8: 5086.29
B9: 1909 | C9: 5086.29
B10: 1910 | C10: 5086.29
B11: 1911 | C11: 4878.32
B12: 1912 | C12: 4878.32
B13: 1913 | C13: 4878.32
B14: 1914 | C14: 4878.32
B15: 1915 | C15: 4340.22
B16: 1916 | C16: 3552.49
B17: 1917 | C17: 2835.94
B18: 1918 | C18: 2023.36
B19: 1919 | C19: 1550.68
B20: 1920 | C20: 1024.62
B21: 1921 | C21: 668.53
B22: 1922 | C22: 495.1
B23: 1923 | C23: 302.98
B24: 1924 | C24: 255.06
B25: 1925 | C25: 219.83
B26: 1926 | C26: 219.83
B27: 1927 | C27: 219.83
B28: 1928 | C28: 219.83
B29: 1929 | C29: 219.83
B30: 1930 | C30: 219.83
B31: 1931 | C31: 219.83
B32: 1932 | C32: 219.83
B33: 1933 | C33: 219.83
B34: 1934 | C34: 219.83
B35: 1935 | C35: 219.83
B36: 1936 | C36: 219.83
B37: 1937 | C37: 213.49
B38: 1938 | C38: 213.49
B39: 1939 | C39: 213.49
B40: 1940 | C40: 179.65
B41: 1941 | C41: 159.56
B42: 1942 | C42: 137.76
B43: 1943 | C43: 117.31
B44: 1944 | C44: 99.56
B45: 1945 | C45: 99.56
B46: 1946 | C46: 99.56
B47: 1947 | C47: 99.56
B48: 1948 | C48: 99.56
B49: 1949 | C49: 99.56
B50: 1950 | C50: 99.56
B51: 1951 | C51: 91.36
B52: 1952 | C52: 91.36
B53: 1953 | C53: 91.36
B54: 1954 | C54: 91.36
B55: 1955 | C55: 91.36
B56: 1956 | C56: 91.36
B57: 1957 | C57: 91.36
B58: 1958 | C58: 85.9
B59: 1959 | C59: 85.9
B60: 1960 | C60: 85.9
B61: 1961 | C61: 85.9
B62: 1962 | C62: 85.9
B63: 1963 | C63: 85.9
B64: 1964 | C64: 82.09
B65: 1965 | C65: 79.07
B66: 1966 | C66: 75.57
B67: 1967 | C67: 70.66
B68: 1968 | C68: 70.66
B69: 1969 | C69: 70.66
B70: 1970 | C70: 65.43
B71: 1971 | C71: 62.28
B72: 1972 | C72: 58.22
B73: 1973 | C73: 52.93
B74: 1974 | C74: 40.59
B75: 1975 | C75: 34.69
B76: 1976 | C76: 29.06
B77: 1977 | C77: 22.26
B78: 1978 | C78: 17.44
B79: 1979 | C79: 13.76
B80: 1980 | C80: 12.4
B81: 1981 | C81: 10.14
B82: 1982 | C82: 8.42
B83: 1983 | C83: 6.74
B84: 1984 | C84: 5.23
B85: 1985 | C85: 4.38
B86: 1986 | C86: 3.95
B87: 1987 | C87: 3.63
B88: 1988 | C88: 3.26
B89: 1989 | C89: 2.93
B90: 1990 | C90: 2.63
B91: 1991 | C91: 2.33
B92: 1992 | C92: 2.13
B93: 1993 | C93: 1.97
B94: 1994 | C94: 1.88
B95: 1995 | C95: 1.8
B96: 1996 | C96: 1.76
B97: 1997 | C97: 1.73
B98: 1998 | C98: 1.68
B99: 1999 | C99: 1.66
B100: 2000 | C100: 1.63
B101: 2001 | C101: 1.52
B102: 2002 | C102: 1.46
B103: 2003 | C103: 1.42
B104: 2004 | C104: 1.4
B105: 2005 | C105: 1.37
B106: 2006 | C106: 1.31
B107: 2007 | C107: 1.29
B108: 2008 | C108: 1.25
B109: 2009 | C109: 1.27
B110: 2010 | C110: 1.25
B111: 2011 | C111: 1.21
B112: 2012 | C112: 1.17
B113: 2013 | C113: 1.17
B114: 2014 | C114: 1.17
B115: 2015 | C115: 1.17
B116: 2016 | C116: 1.16
B117: 2017 | C117: 1.15
B118: 2018 | C118: 1.14
B119: 2019 | C119: 1.14
B120: 2020 | C120: 1.14
B121: 2021 | C121: 1.13
B122: 2022 | C122: 1.04
B123: 2023 | C123: 1

Sheet Art 13 CIMT
A2: Intervalo | B2: Idade do usufrutuário | C2: Valor do Usufruto (%) | D2: Valor da Nua Propriedade (%)
A3: 0 a 20 anos | B3: 0 | C3: 0.9 | D3: 0.1
A4: 20 a 30 anos | B4: 20 | C4: 0.85 | D4: 0.15
A5: 30 a 40 anos | B5: 30 | C5: 0.8 | D5: 0.2
A6: 40 a 50 anos | B6: 40 | C6: 0.7 | D6: 0.3
A7: 50 a 60 anos | B7: 50 | C7: 0.6 | D7: 0.4
A8: 60 a 65 anos | B8: 60 | C8: 0.5 | D8: 0.5
A9: 65 a 70 anos | B9: 65 | C9: 0.4 | D9: 0.6
A10: 70 a 75 anos | B10: 70 | C10: 0.3 | D10: 0.7
A11: 75 a 80 anos | B11: 75 | C11: 0.2 | D11: 0.8
A12: Mais de 80 anos | B12: 999 | C12: 0.1 | D12: 0.9

Sheet Backup (hidden)
A6: Direito | B6: Usufruto | C6: Direito | D6: Nua Propriedade | E6: Direito | F6: Usufruto
A7: Quota-parte do direito | B7: 0.5 | C7: Quota-parte do direito | D7: 0.5 | E7: Quota-parte do direito | F7: 0.5
A8: Origem | B8: Herança de terceiro | C8: Origem | D8: Herança de terceiro | E8: Origem | F8: Herança de terceiro
A9: Valor do imóvel na doação | B9: 40000 | C9: Valor do imóvel na doação | D9: 40000 | E9: Valor do imóvel na doação | F9: 40000
A10: Ano de aquisição | B10: 1990 | C10: Ano de aquisição | D10: 1990 | E10: Ano de aquisição | F10: 2013
A11: Obras nos últimos 12 anos | B11: 0 | C11: Obras nos últimos 12 anos | D11: 5000 | E11: Obras nos últimos 12 anos | F11: 0
A12: Impostos pagos na aquisição | B12: 100 | C12: Impostos pagos na aquisição | D12: 100 | E12: Impostos pagos na aquisição | F12: 100
A13: Outros encargos dedutíveis | B13: 0 | C13: Outros encargos dedutíveis | D13: 0 | E13: Outros encargos dedutíveis | F13: 0
A15: Coeficiente de atualização | B15: 2.63 | C15: Coeficiente de atualização | D15: 2.63 | E15: Coeficiente de atualização | F15: 1.17
A16: Despesas e encargos | B16: 100 | C16: Despesas e encargos | D16: 5100 | E16: Despesas e encargos | F16: 100
A17: Percentagem atribuída do direito | C17: Percentagem atribuída | E17: Percentagem atribuída
A18: Quota-parte da mais-valia | C18: Mais-valia | E18: Mais-valia
A21: Finalidade do imóvel | B21: Habitação secundária | C21: Finalidade do imóvel | D21: Habitação secundária | E21: Finalidade do imóvel | F21: Habitação secundária
A22: Rendimento anual coletável | C22: Rendimento anual coletável | E22: Rendimento anual coletável
